{"text_format":"1","workbook":"xlsx","n_sheets":15,"sheets":["Инструкция","Титульный","списки","данные об организации","Техн характер системы","Техн характер системы (бсх)","полезный отпуск","баланс ВСН","отчет по реализации","Смета факт","выручка по форме №2","показатели надежн и качества","отчет ПП1","отчет ПП2","Лист3"],"not_rendered":{"charts":0,"images":4,"macros":1,"external_links":1,"defined_names":142,"comments":0,"pivot_tables":0},"unopened":[],"bounds":{"document_bytes":16777216,"sheet_cells":100000,"rows_first":2000,"rows_last":500,"rows_between":2000,"halvings":0,"cell_chars":16384,"cell_head_chars":4096},"cells_cut":0,"cells_raw":0,"read":"whole","date_system":"1900"}

{"sheet":"Инструкция","index":0,"n_rows":0,"n_cols":0,"rows_kept":0,"cut":false,"hidden":false,"merged":[]}

{"sheet":"Титульный","index":1,"n_rows":23,"n_cols":3,"rows_kept":23,"cut":false,"hidden":false,"merged":[[1,0,1,2]]}
[]
["ОТЧЕТ О ВЫПОЛНЕНИИ ПРОИЗВОДСТВЕННОЙ ПРОГРАММЫ"]
[]
[null,"Регион РФ","Томская область"]
[]
[null,"Муниципальный район ",""]
[null,"Муниципальное образование ",""]
[]
[null,"ИНН ",""]
[null,"Наименование  организации",{"$f":"IF(Титульный!C9=\"\",\" \",INDEX(списки!M2:N300,MATCH(Титульный!C9*1,списки!M2:M300,0),2))","v":" "}]
[null,"Наименование филиала"]
[]
[null,"КПП "]
[]
[null,"Вид деятельности","Водоснабжение"]
[]
[null,"период отчета","2015"]
[]
[null,"Вид  тарифа  в системе холодного водоснабжения","горячее водоснабжение (закрытая система)"]
[]
[]
[]
[null,"Система налогообложения"]

{"sheet":"списки","index":2,"n_rows":300,"n_cols":14,"rows_kept":300,"cut":false,"hidden":true,"merged":[]}
["Районы",null,"Муниципальные образования",null,"Год",null,"Выбор",null,"Система налогообложения",null,null,null,"ИНН","Наименование организации"]
[null,null,null,null,null,null,null,null,null,null,1,2,2704016508,"филиал \"Сибирский\" ОАО \"28 Электрическая сеть\""]
["Александровский",null,"Александровское",null,2011,null,"да",null,"Общая",1,"прибыль","доходы",4205048280,"Открытое акционерное общество \"Кузбасс-пригород\""]
["Асиновский",null,"Анастасьевское",null,2012,null,"нет",null,"Упрощенная",2,null,"доходы минус расходы",4205130008,"Общество с ограниченной ответственностью \"ИнвестГрадСтрой\""]
["Бакчарский",null,"Асиновское городское",null,2013,null,null,null,null,null,null,null,4633017746,"Общество с ограниченной ответственностью \"Региональная энергосбытовая компания\" (ОПП)"]
["Верхнекетский",null,"Базойское",null,2014,null,null,null,null,null,null,null,4716016979,"ОАО \"ФСК ЕЭС\""]
["г. Кедровый",null,"Бакчарское",null,2015,null,null,null,null,null,null,null,5401379586,"Общество с ограниченной ответсвенностью \"Пуско-НаладкаСервис\""]
["г. Северск",null,"Баткатское",null,2016,null,null,null,null,null,null,null,5406323202,"Открытое акционерное общество \"Территориальная генерирующая компания №11\""]
["г. Стрежевой",null,"Батуринское",null,2017,null,null,null,null,null,null,null,5406686767,"Общество с ограниченной ответственностью \"Пуско-Наладка Сервис +\""]
["г. Томск",null,"Белоярское",null,2018,null,null,null,null,null,null,null,5407208153,"Общество с ограниченной ответственностью \"Газпром межрегионгаз Новосибирск\""]
["Зырянский",null,"Белоярское городское",null,2019,null,null,null,null,null,null,null,6661105959,"Закрытое акционерное общество \"Энергопромышленная компания\", г. Екатеринбург"]
["Каргасокский",null,"Берегаевское",null,2020,null,null,null,null,null,null,null,6672185635,"Общество с ограниченной ответственностью \"АРСТЭМ-ЭнергоТрейд\", г.Екатеринбург"]
["Кожевниковский",null,"Богатыревское",null,null,null,null,null,null,null,null,null,7000000331,"Открытое акционерное общество по газоснабжению и газификации Томской области \"Томскоблгаз\""]
["Колпашевский",null,"Богашевское",null,null,null,null,null,null,null,null,null,7002006723,"муниципальное бюджетное учреждение здравоохранения \"Асиновская центральная районная больница\""]
["Кривошеинский",null,"Большедороховское",null,null,null,null,null,null,null,null,null,7002010695,"Муниципальное унитарное предприятие \"Спецавтохозяйство\""]
["Молчановский",null,"Вавиловское",null,null,null,null,null,null,null,null,null,7002011508,"Муниципальное унитарное предприятие \"Большедороховское жилищно-коммунальное хозяйство\""]
["Парабельский",null,"Вертикосское",null,null,null,null,null,null,null,null,null,7002011515,"Муниципальное унитарное предприятие \"Новокусковское жилищно-коммунальное хозяйство\""]
["Первомайский",null,"Володинское",null,null,null,null,null,null,null,null,null,7002011522,"Муниципальное унитарное предприятие \"Новиковское жилищно-коммунальное хозяйство\""]
["Тегульдетский",null,"Воронинское",null,null,null,null,null,null,null,null,null,7002011530,"Муниципальное унитарное предприятие \"Батуринское жилищно-коммунальное хозяйство\""]
["Томский",null,"Высоковское",null,null,null,null,null,null,null,null,null,7002011547,"Муниципальноте унитарное предприятие \"Ягодное жилищно-коммунальное хозяйство\""]
["Чаинский",null,"Высокоярское",null,null,null,null,null,null,null,null,null,7002011787,"Муниципальное унитарное предприятие \"Новониколаевское жилищно-коммунальное хозяйство\""]
["Шегарский",null,"Галкинское",null,null,null,null,null,null,null,null,null,7002016312,"Общество с ограниченной ответственностью \"Асиновская водяная компания\""]
[null,null,"г. Кедровый",null,null,null,null,null,null,null,null,null,7002016390,"Общество с ограниченной ответсвенностью \"СтройИнженерСервис\""]
[null,null,"городской округ \"ЗАТО Северск\"",null,null,null,null,null,null,null,null,null,7002016425,"Общество с ограниченной ответственностью \"Асиновская тепло-энергетическая компания\""]
[null,null,"городской округ \"г. Стрежевой\"",null,null,null,null,null,null,null,null,null,7002016626,"Общество с ограниченной ответственностью \"Асиновская тепло-генерирующая компания-№1\""]
[null,null,"городской округ \"г. Томск\"",null,null,null,null,null,null,null,null,null,7002016873,"ОБЩЕСТВО С ОГРАНИЧЕННОЙ ОТВЕТСТВЕННОСТЬЮ \"АСИНОВСКИЙ ТЕПЛО-ЭНЕРГЕТИЧЕСКИЙ КОМПЛЕКС\""]
[null,null,"Колпашевское городское",null,null,null,null,null,null,null,null,null,7002016954,"Муниципальное унитарное предприятие \"Новокусковские коммунальные системы\""]
[null,null,"Дальненское",null,null,null,null,null,null,null,null,null,7002017027,"Общество с ограниченной ответсвенностью \"Асиновский водоканал\""]
[null,null,"Дубровское",null,null,null,null,null,null,null,null,null,7002017186,"ОБЩЕСТВО С ОГРАНИЧЕННОЙ ОТВЕТСТВЕННОСТЬЮ \"ТЕПЛОЭНЕРГОРЕСУРС №1\""]
[null,null,"Заводское",null,null,null,null,null,null,null,null,null,7002017193,"ОБЩЕСТВО С ОГРАНИЧЕННОЙ ОТВЕТСТВЕННОСТЬЮ \"ТЕПЛОЭНЕРГОРЕСУРС №2\""]
[null,null,"Заречное",null,null,null,null,null,null,null,null,null,7002017203,"ОБЩЕСТВО С ОГРАНИЧЕННОЙ ОТВЕТСТВЕННОСТЬЮ \"ТЕПЛОЭНЕРГОРЕСУРС №3\""]
[null,null,"Зональненское",null,null,null,null,null,null,null,null,null,7002017210,"ОБЩЕСТВО С ОГРАНИЧЕННОЙ ОТВЕТСТВЕННОСТЬЮ \"ТЕПЛОЭНЕРГОРЕСУРС №4\""]
[null,null,"Зоркальцевское",null,null,null,null,null,null,null,null,null,7003000185,"Закрытое акционерное общество \"Бакчаравтотранс\""]
[null,null,"Зырянское",null,null,null,null,null,null,null,null,null,7003000227,"Муниципальное унитарное предприятие Бакчарского района \"Бакчарский коммунальный комплекс\""]
[null,null,"Инкинское",null,null,null,null,null,null,null,null,null,7003000273,"Областное государственное бюджетное образовательное учреждение начального профессионального образования \"Профессиональное училище № 35\""]
[null,null,"Итатское",null,null,null,null,null,null,null,null,null,7003003130,"Открытое акционерное общество \"Агропромышленная компания \"Галкинская\""]
[null,null,"Иштанское",null,null,null,null,null,null,null,null,null,7003004207,"Общество с ограниченной ответственностью \"Бакчартеплосети\""]
[null,null,"Калтайское",null,null,null,null,null,null,null,null,null,7003005391,"Общество с ограниченной ответственностью \"Бакчартепло\""]
[null,null,"Каргасокское",null,null,null,null,null,null,null,null,null,7003005401,"Общество с ограниченной ответственностью \"Теплосервис\""]
[null,null,"Катайгинское",null,null,null,null,null,null,null,null,null,7004004182,"Муниципальное унитарное предприятие \"Лисица\""]
[null,null,"Кидальское",null,null,null,null,null,null,null,null,null,7004004746,"Общество с ограниченной ответственностью \"Гранит\""]
[null,null,"Клюквинское",null,null,null,null,null,null,null,null,null,7004005323,"Общество с ограниченной ответственностью \"БИО ТЭК Верхняя Кеть\""]
[null,null,"Кожевниковское",null,null,null,null,null,null,null,null,null,7004006052,"Общество с ограниченной ответственностью \"БИО ТЭК-С\""]
[null,null,"Коломинское",null,null,null,null,null,null,null,null,null,7004007095,"Общество с ограниченной ответственностью \"БИОПРОМ\""]
[null,null,"Комсомольское",null,null,null,null,null,null,null,null,null,7004007151,"Общество с ограниченной ответственностью \"Деметра\""]
[null,null,"Копыловское",null,null,null,null,null,null,null,null,null,7004007200,"Общество с ограниченной ответственностью \"Сайга-Энерго\""]
[null,null,"Корниловское",null,null,null,null,null,null,null,null,null,7004007240,"Общество с ограниченной ответственностью \"Коммунально-жилищный сервис Ягодное\""]
[null,null,"Красногорское",null,null,null,null,null,null,null,null,null,7004007345,"Общество с ограниченной ответственностью \"БИО ТЭК - М\""]
[null,null,"Красноярское",null,null,null,null,null,null,null,null,null,7005006305,"Муниципальное учреждение - Администрация Чердатского сельского поселения"]
[null,null,"Кривошеинское",null,null,null,null,null,null,null,null,null,7005006312,"Муниципальное учреждение - Администрация Высоковского сельского поселения"]
[null,null,"Курлекское",null,null,null,null,null,null,null,null,null,7005006344,"Муниципальное учреждение - Администрация Дубровского сельского поселения"]
[null,null,"Куяновское",null,null,null,null,null,null,null,null,null,7005006560,"Михайловское муниципальное унитарное предприятие \"Родник\""]
[null,null,"Лукашкин-Ярское",null,null,null,null,null,null,null,null,null,7005007193,"Общество с ограниченной ответственностью \"Аква-Сервис\""]
[null,null,"Макзырское",null,null,null,null,null,null,null,null,null,7005007203,"Общество с ограниченной ответственностью \"Эко-Транс\""]
[null,null,"Малиновское",null,null,null,null,null,null,null,null,null,7005015638,"Общество с ограниченной ответственностью \"КомСервис Тегульдет\""]
[null,null,"Межениновское",null,null,null,null,null,null,null,null,null,7005016590,"Муниципальное унитарное предприятие \"Прогресс\""]
[null,null,"Мирнинское",null,null,null,null,null,null,null,null,null,7006005110,"МУНИЦИПАЛЬНОЕ УНИТАРНОЕ ПРЕДПРИЯТИЕ \"КАРГАСОКСКИЙ ЖИЛИЩНО-ЭКСПЛУАТАЦИОННЫЙ УЧАСТОК\" КАРГАСОКСКОГО СЕЛЬСКОГО ПОСЕЛЕНИЯ"]
[null,null,"Михайловское",null,null,null,null,null,null,null,null,null,7006005632,"Муниципальное унитарное предприятие  Каргасокский \"Тепловодоканал\""]
[null,null,"Могочинское",null,null,null,null,null,null,null,null,null,7006005939,"Муниципальное унитарное предприятие \"Теплоэнергоснаб\" муниципального образования Новоюгинское сельское поселение"]
[null,null,"Молчановское",null,null,null,null,null,null,null,null,null,7006006139,"Муниципальное унитарное предприятие  \"ЖКХ Березовское\" муниципального образования \"Усть-Чижапское сельское поселение\""]
[null,null,"Моряковское",null,null,null,null,null,null,null,null,null,7006006146,"Муниципальное унитарное предприятие  \"ЖКХ Усть-Тымское\" муниципального образования \"Усть-Тымское сельское поселение\""]
[null,null,"Назинское",null,null,null,null,null,null,null,null,null,7006006153,"Муниципальное унитарное предприятие \"ЖКХ Сосновское\" муниципального образования \"Сосновское сельское поселение\""]
[null,null,"Наргинское",null,null,null,null,null,null,null,null,null,7006006160,"Муниципальное унитарное предприятие \"ЖКХ Молодежный\" муниципального образования \"Среднетымское сельское поселение\""]
[null,null,"Нарымское",null,null,null,null,null,null,null,null,null,7006006178,"Муниципальное унитарное предприятие \"ЖКХ Киевское\" муниципального образования \"Толпаровское сельское поселение\""]
[null,null,"Наумовское",null,null,null,null,null,null,null,null,null,7006006280,"МУНИЦИПАЛЬНОЕ УНИТАРНОЕ ПРЕДПРИЯТИЕ \"ЖКХ ТЕВРИЗСКОЕ\" МУНИЦИПАЛЬНОГО ОБРАЗОВАНИЯ \"СРЕДНЕВАСЮГАНСКОЕ СЕЛЬСКОЕ ПОСЕЛЕНИЕ\""]
[null,null,"Национальное Иванкинское",null,null,null,null,null,null,null,null,null,7006006298,"Муниципальное унитарное предприятие \"ЖКХ Тымское\" муниципального образования \"Тымское сельское поселение\""]
[null,null,"Новиковское",null,null,null,null,null,null,null,null,null,7006006749,"МУП \"ЖКХ Средневасюганское\""]
[null,null,"Нововасюганское",null,null,null,null,null,null,null,null,null,7006007407,"Муниципальное унитарное предприятие \" Нововасюганское\" муниципального образования \"Нововасюганское сельское поселение\""]
[null,null,"Новогоренское",null,null,null,null,null,null,null,null,null,7006008432,"Муниципальное унитарное предприятие \"ЖКХ Васюган\" муниципального образования \"Средневасюганское сельское поселение\""]
[null,null,"Новокривошеинское",null,null,null,null,null,null,null,null,null,7007007583,"Общество с ограниченной ответственностью \"Риск\""]
[null,null,"Новокусковское",null,null,null,null,null,null,null,null,null,7007007657,"Общество с ограниченной ответственностью \"Заря - Сервис\""]
[null,null,"Новомариинское",null,null,null,null,null,null,null,null,null,7007008033,"Общество с ограниченной ответственностью \"Теплотехник\""]
[null,null,"Новониколаевское",null,null,null,null,null,null,null,null,null,7007009950,"Общество с ограниченной ответственностью \"Колпашевская тепловая компания\""]
[null,null,"Новоникольское",null,null,null,null,null,null,null,null,null,7007010120,"Общество с ограниченной ответственностью \"Водоканал - 2\""]
[null,null,"Новопокровское",null,null,null,null,null,null,null,null,null,7007010138,"Общество с ограниченной ответственностью \"Водоканал - 1\""]
[null,null,"Новорождественское",null,null,null,null,null,null,null,null,null,7007010843,"Общество с ограниченной ответственностью \"Энергоснаб\""]
[null,null,"Новоселовское",null,null,null,null,null,null,null,null,null,7007011117,"Общество с ограниченной ответственностью \"Энергия\""]
[null,null,"Новосельцевское",null,null,null,null,null,null,null,null,null,7007011269,"Муниципальное унитарное предприятие \"Пламя\""]
[null,null,"Новоюгинское",null,null,null,null,null,null,null,null,null,7007011639,"Общество с ограниченной ответственностью \"Колпашевские очистные системы\""]
[null,null,"Октябрьское",null,null,null,null,null,null,null,null,null,7007011974,"ОБЩЕСТВО С ОГРАНИЧЕННОЙ ОТВЕТСТВЕННОСТЬЮ \" ДАЛЬЭНЕРГО\""]
[null,null,"Орловское",null,null,null,null,null,null,null,null,null,7007012047,"ОБЩЕСТВО С ОГРАНИЧЕННОЙ ОТВЕТСТВЕННОСТЬЮ \"БЛИЖНИЙ СВЕТ\""]
[null,null,"Палочкинское",null,null,null,null,null,null,null,null,null,7007012079,"МУНИЦИПАЛЬНОЕ УНИТАРНОЕ ПРЕДПРИЯТИЕ \"ТЕПЛОЭНЕРГЕТИК\""]
[null,null,"Парабельское",null,null,null,null,null,null,null,null,null,7007012093,"МУНИЦИПАЛЬНОЕ УНИТАРНОЕ ПРЕДПРИЯТИЕ \"ЭНЕРГЕТИК\""]
[null,null,"Парбигское",null,null,null,null,null,null,null,null,null,7008000630,"ОБЩЕСТВО С ОГРАНИЧЕННОЙ ОТВЕТСТВЕННОСТЬЮ \"СЛУЖБА ТЕПЛОВОЙ ЭНЕРГИИ\""]
[null,null,"Первомайское",null,null,null,null,null,null,null,null,null,7008006430,"Кожевниковское районное муниципальное унитарное предприятие \"Коммунальное ремонтно-строительное хозяйство\""]
[null,null,"Песочно-Дубровское",null,null,null,null,null,null,null,null,null,7008006448,"Общество с ограниченной ответственностью  \"Кожевниковский КОМХОЗ\""]
[null,null,"Петровское",null,null,null,null,null,null,null,null,null,7008006543,"Общество с ограниченной ответственностью \"Сибтерм - К\""]
[null,null,"Плотниковское",null,null,null,null,null,null,null,null,null,7008006582,"Общество с ограниченной ответственностью \"Коммунальные системы Кожевниково\""]
[null,null,"Побединское",null,null,null,null,null,null,null,null,null,7008007554,"Общество с ограниченной ответственностью \"Селькомхоз\""]
[null,null,"Подгорнское",null,null,null,null,null,null,null,null,null,7009003224,"Общество с ограниченной ответственностью \"ЗПК СибЛесТрейд\""]
[null,null,"Поротниковское",null,null,null,null,null,null,null,null,null,7009003383,"Общество с ограниченной ответственностью \"Теплосервис\""]
[null,null,"Пудовское",null,null,null,null,null,null,null,null,null,7009003954,"Муниципальное унитарное предприятие \"Жилищно-коммунальное хозяйство Кривошеинского сельского поселения\""]
[null,null,"Рыбаловское",null,null,null,null,null,null,null,null,null,7009004027,"Общество с ограниченной ответственностью \"H 2 O\""]
[null,null,"Сайгинское",null,null,null,null,null,null,null,null,null,7009004073,"Общество с ограниченной ответственностью \"ЭНЕРГОРЕСУРС\""]
[null,null,"Саровское",null,null,null,null,null,null,null,null,null,7010002296,"Общество с ограниченной ответственностью \"Энергия-М\""]
[null,null,"Северное",null,null,null,null,null,null,null,null,null,7010002673,"Общество с ограниченной ответственностью \"Компания экологической безопасности\""]
[null,null,"Сергеевское",null,null,null,null,null,null,null,null,null,7010002786,"Общество с ограниченной ответственностью \"Водопровод\""]
[null,null,"Сосновское",null,null,null,null,null,null,null,null,null,7010006269,"Общество с ограниченной ответственностью \"Молчановская Тепловая Компания\""]
[null,null,"Спасское",null,null,null,null,null,null,null,null,null,7011003207,"Муниципальное унитарное предприятие \"Нарымское жилищно-коммунальное хозяйство\""]
[null,null,"Средневасюганское",null,null,null,null,null,null,null,null,null,7011005155,"Муниципальное казенное учреждение Администрация Новосельцевского сельского поселения - исполнительно распорядительный орган муниципального образования Новосельцевского сельского поселения"]
[null,null,"Среднетымское",null,null,null,null,null,null,null,null,null,7011005162,"Муниципальное казенное учреждение Администрация Заводского сельского поселения - исполнительно распорядительный орган муниципального образования Заводского сельского поселения"]
[null,null,"Старицынское",null,null,null,null,null,null,null,null,null,7011006014,"Общество с ограниченной ответственностью \"Универсал-Сервис\""]
[null,null,"Староювалинское",null,null,null,null,null,null,null,null,null,7011006092,"Муниципальное унитарное Предприятие: \"Парабель - Энергокомплекс\""]
[null,null,"Степановское",null,null,null,null,null,null,null,null,null,7011006215,"Общество с ограниченной ответственностью \"Строитель\""]
[null,null,"Суйгинское",null,null,null,null,null,null,null,null,null,7012004926,"Муниципальное унитарное предприятие \"Сергеевское\""]
[null,null,"Тевризское",null,null,null,null,null,null,null,null,null,7012005831,"Общество с ограниченной ответственностью Строительно-Монтажное Предприятие \"Чулымское\""]
[null,null,"Тегульдетское",null,null,null,null,null,null,null,null,null,7012006602,"Общество с ограниченной ответственностью \"Куяновское\""]
[null,null,"Тогуровское",null,null,null,null,null,null,null,null,null,7012006779,"Общество с ограниченной ответственностью \"Луговское\""]
[null,null,"Толпаровское",null,null,null,null,null,null,null,null,null,7012007162,"ОБЩЕСТВО С ОГРАНИЧЕННОЙ ОТВЕТСТВЕННОСТЬЮ \"ЖИЛКОМФОРТ\""]
[null,null,"Трубоческое",null,null,null,null,null,null,null,null,null,7012007170,"ОБЩЕСТВО С ОГРАНИЧЕННОЙ ОТВЕТСТВЕННОСТЬЮ \"АЛЬЯНС\""]
[null,null,"Тунгуссовское",null,null,null,null,null,null,null,null,null,7014000490,"Открытое акционерное общество \"Томскснаб\""]
[null,null,"Турунтаевское",null,null,null,null,null,null,null,null,null,7014002681,"Федеральное казенное учреждение \"Томская воспитательная колония №1 Управления Федеральной службы исполнения наказаний по Томской области\""]
[null,null,"Тымское",null,null,null,null,null,null,null,null,null,7014019879,"Общество с ограниченной ответственностью \"Энергоучасток\""]
[null,null,"Улу-Юльское",null,null,null,null,null,null,null,null,null,7014027742,"Общество с ограниченной ответственностью \"Межениновская птицефабрика\""]
[null,null,"Уртамское",null,null,null,null,null,null,null,null,null,7014040790,"Общество с ограниченной ответственностью \"Тепло-энергетическое Предприятие Лоскутовское\""]
[null,null,"Усть-Бакчарское",null,null,null,null,null,null,null,null,null,7014041063,"Общество с ограниченной ответственностью \"ЖКХ Рыбаловское\""]
[null,null,"Усть-Тымское",null,null,null,null,null,null,null,null,null,7014041634,"Общество с ограниченной ответственностью  \"Санаторий Синий Утес\""]
[null,null,"Усть-Чижапское",null,null,null,null,null,null,null,null,null,7014044882,"Общество с ограниченной ответственностью \"Аэропорт Томск\""]
[null,null,"Чажемтовское",null,null,null,null,null,null,null,null,null,7014045068,"Муниципальное унитарное предприятие Богашевского сельского поселения \"Орион\""]
[null,null,"Чаинское",null,null,null,null,null,null,null,null,null,7014046216,"Общество с ограниченной ответственностью \"Тепло\""]
[null,null,"Черноярское",null,null,null,null,null,null,null,null,null,7014048076,"Общество с ограниченной ответственностью \"Восточная Инвестиционная Газовая Компания\""]
[null,null,"Чернышевское",null,null,null,null,null,null,null,null,null,7014048252,"Общество с ограниченной ответственностью \"Управляющая компания ТеплоСервис\""]
[null,null,"Четское",null,null,null,null,null,null,null,null,null,7014048816,"Общество с ограниченной ответственностью \"ПЕТРОПАВЛОВСКОЕ\""]
[null,null,"Чилинское",null,null,null,null,null,null,null,null,null,7014049866,"МУНИЦИПАЛЬНОЕ КАЗЕННОЕ ПРЕДПРИЯТИЕ ТОМСКОГО РАЙОНА \"ТЕХНОПОЛИГОН\""]
[null,null,"Шегарское",null,null,null,null,null,null,null,null,null,7014049915,"Общество с ограниченной ответственностью \"ЭКМО\""]
[null,null,"Ягоднинское",null,null,null,null,null,null,null,null,null,7014050043,"Общество с ограниченной ответсвенностью \"Газпромнефть-Аэро Томск\""]
[null,null,"Ягодное",null,null,null,null,null,null,null,null,null,7014052523,"Общество с ограниченной ответственностью \"ЭкоТон\""]
[null,null,null,null,null,null,null,null,null,null,null,null,7014053541,"Общество с ограниченной ответственностью \"Ресурс-Т\""]
[null,null,null,null,null,null,null,null,null,null,null,null,7014054440,"Общество с ограниченной ответственностью \"Водоресурс\""]
[null,null,null,null,null,null,null,null,null,null,null,null,7014054979,"МУНИЦИПАЛЬНОЕ ПРЕДПРИЯТИЕ ЗОНАЛЬНЕНСКОГО СЕЛЬСКОГО ПОСЕЛЕНИЯ \"СЛУЖБА КОММУНАЛЬНОГО СЕРВИСА\""]
[null,null,null,null,null,null,null,null,null,null,null,null,7014055027,"муниципальное унитарное предприятие Мирненского сельского поселения \"ТВК\""]
[null,null,null,null,null,null,null,null,null,null,null,null,7014055242,"Общество с ограниченной ответственностью \"Комсервис\""]
[null,null,null,null,null,null,null,null,null,null,null,null,7014055404,"Муниципальное унитарное предприятие жилищно-коммунального хозяйства \"Исток\" Новорождественского сельского поселения"]
[null,null,null,null,null,null,null,null,null,null,null,null,7014055644,"Общество с ограниченной ответственностью \"Управляющая компания \"Томскосельское\""]
[null,null,null,null,null,null,null,null,null,null,null,null,7014055796,"Общество с ограниченной ответственностью \"Восточная Водяная Компания\""]
[null,null,null,null,null,null,null,null,null,null,null,null,7014055806,"Общество с ограниченной ответственностью \"Восточная Тепловая Компания\""]
[null,null,null,null,null,null,null,null,null,null,null,null,7014055813,"Общество с ограниченной ответственностью \"Восточная Компания\""]
[null,null,null,null,null,null,null,null,null,null,null,null,7014055845,"Общество с ограниченной ответственность \"Западная Тепловая Компания\""]
[null,null,null,null,null,null,null,null,null,null,null,null,7014055884,"Общество с ограниченной ответственностью \"Южная Тепловая Компания\""]
[null,null,null,null,null,null,null,null,null,null,null,null,7014056084,"Общество с ограниченной ответственностью \"Теплогазсервис\""]
[null,null,null,null,null,null,null,null,null,null,null,null,7014056711,"Общество с ограниченной ответственностью \"Гарант\""]
[null,null,null,null,null,null,null,null,null,null,null,null,7014057257,"Муниципальное унитарное предприятие Межениновского сельского поселения \"Жилищно-коммунальное хозяйство ВодСервис\""]
[null,null,null,null,null,null,null,null,null,null,null,null,7014057320,"Муниципальное унитарное предприятие \"Жилищное коммунальное хозяйство Октябрьское\""]
[null,null,null,null,null,null,null,null,null,null,null,null,7014057377,"Общество с ограниченной ответственностью \"Комсервис+М\""]
[null,null,null,null,null,null,null,null,null,null,null,null,7014057715,"МУНИЦИПАЛЬНОЕ УНИТАРНОЕ ПРЕДПРИЯТИЕ ЗАРЕЧНОГО СЕЛЬСКОГО ПОСЕЛЕНИЯ \"ЗАРЕЧНОЕ\""]
[null,null,null,null,null,null,null,null,null,null,null,null,7014057754,"Общество с ограниченной ответсвенностью \"Водоканал\""]
[null,null,null,null,null,null,null,null,null,null,null,null,7014057916,"МУНИЦИПАЛЬНОЕ УНИТАРНОЕ ПРЕДПРИЯТИЕ \"НОРМА\""]
[null,null,null,null,null,null,null,null,null,null,null,null,7015000373,"Муниципальное унитарное предприятие Чаинского района \"Чаинское производственное объединение жилищно-коммунального хозяйства\""]
[null,null,null,null,null,null,null,null,null,null,null,null,7015000535,"ОБЛАСТНОЕ ГОСУДАРСТВЕННОЕ БЮДЖЕТНОЕ УЧРЕЖДЕНИЕ ЗДРАВООХРАНЕНИЯ \"ЧАИНСКАЯ РАЙОННАЯ БОЛЬНИЦА\""]
[null,null,null,null,null,null,null,null,null,null,null,null,7016000016,"Общество с ограниченной ответственностью \"Водоканал\""]
[null,null,null,null,null,null,null,null,null,null,null,null,7016000030,"Общество с ограниченной ответственностью \"Автотранс\""]
[null,null,null,null,null,null,null,null,null,null,null,null,7016001098,"Областное государственное автономное учреждение \"Дом-интернат для престарелых и инвалидов \"Лесная дача\""]
[null,null,null,null,null,null,null,null,null,null,null,null,7016001620,"Областное государственное автономное учреждение \"Шегарский психоневрологический интернат \"ЗАБОТА\""]
[null,null,null,null,null,null,null,null,null,null,null,null,7016003754,"Общество с ограниченной ответственностью \"ЗПП - Т\""]
[null,null,null,null,null,null,null,null,null,null,null,null,7016005617,"Общество с ограниченной ответственностью \"Шегарский водоканал\""]
[null,null,null,null,null,null,null,null,null,null,null,null,7016007156,"Общество с ограниченной ответственностью Управляющая компания \"Успех\""]
[null,null,null,null,null,null,null,null,null,null,null,null,7017001968,"Унитарное муниципальное предприятие \"Спецавтохозяйство г. Томска\""]
[null,null,null,null,null,null,null,null,null,null,null,null,7017002136,"Унитарное муниципальное предприятие г. Томска \"Комбинат Спецобслуживания\" по организации похорон и предоставлению связанных с ними услуг"]
[null,null,null,null,null,null,null,null,null,null,null,null,7017004366,"Акционерное общество \"Транснефть-Центральная Сибирь\""]
[null,null,null,null,null,null,null,null,null,null,null,null,7017005289,"Общество с ограниченной ответственностью \"Газпром трансгаз Томск\""]
[null,null,null,null,null,null,null,null,null,null,null,null,7017012254,"Акционерное общество \"Сибирская Аграрная Группа\""]
[null,null,null,null,null,null,null,null,null,null,null,null,7017020625,"Общество с ограниченной ответственностью \"Торговый дом ОАО \"Томскоблгаз\""]
[null,null,null,null,null,null,null,null,null,null,null,null,7017063682,"Закрытое акционерное общество \"Восточная Инвестиционная Газовая Компания\""]
[null,null,null,null,null,null,null,null,null,null,null,null,7017071531,"Общество с ограниченной ответственностью \"Квинта\""]
[null,null,null,null,null,null,null,null,null,null,null,null,7017074765,"Общество с ограниченной ответственностью \"Сибтерм - Эксплуатация\""]
[null,null,null,null,null,null,null,null,null,null,null,null,7017075536,"Общество с ограниченной ответственностью \"Томскнефтехим\""]
[null,null,null,null,null,null,null,null,null,null,null,null,7017079259,"Общество с ограниченной ответственностью \"Стройтехмонтаж\""]
[null,null,null,null,null,null,null,null,null,null,null,null,7017081040,"Общество с ограниченной ответственностью \"Горсети\""]
[null,null,null,null,null,null,null,null,null,null,null,null,7017095349,"Открытое акционерное общество \"Организация \"Технотрон\""]
[null,null,null,null,null,null,null,null,null,null,null,null,7017098220,"Общество с ограниченной ответственностью \"Завод приборных подшипников\""]
[null,null,null,null,null,null,null,null,null,null,null,null,7017100486,"Закрытое акционерное общество  \"Городские очистные сооружения\""]
[null,null,null,null,null,null,null,null,null,null,null,null,7017104931,"Общество с ограниченной ответственностью \"ТИЗ - Сервис\""]
[null,null,null,null,null,null,null,null,null,null,null,null,7017110131,"Закрытое акционерное общество Кондитерская фабрика \"Красная звезда\""]
[null,null,null,null,null,null,null,null,null,null,null,null,7017114672,"Публичное акционерное общество \"Томская распределительная компания\""]
[null,null,null,null,null,null,null,null,null,null,null,null,7017114680,"Публичное акционерное общество \"Томская энергосбытовая компания\""]
[null,null,null,null,null,null,null,null,null,null,null,null,7017123606,"Общество с ограниченной ответственностью \"Управляющая компания \"Томского приборного завода\""]
[null,null,null,null,null,null,null,null,null,null,null,null,7017123677,"Общество с ограниченной ответственностью \"Консоль\""]
[null,null,null,null,null,null,null,null,null,null,null,null,7017126491,"Общество с ограниченной ответственностью \"Сибавтотранс\""]
[null,null,null,null,null,null,null,null,null,null,null,null,7017134397,"Общество с ограниченной ответственностью \"ГазТехСервис\""]
[null,null,null,null,null,null,null,null,null,null,null,null,7017141443,"Общество с ограниченной ответственностью \"Академэлектросеть\""]
[null,null,null,null,null,null,null,null,null,null,null,null,7017153992,"акционерное общество \"Особая экономическая зона технико-внедренческого типа \"Томск\""]
[null,null,null,null,null,null,null,null,null,null,null,null,7017155291,"Общество с ограниченной ответственностью \"Энерго-С\""]
[null,null,null,null,null,null,null,null,null,null,null,null,7017203428,"ОБЩЕСТВО С ОГРАНИЧЕННОЙ ОТВЕТСТВЕННОСТЬЮ \"ГАЗПРОМ ГАЗОРАСПРЕДЕЛЕНИЕ ТОМСК\""]
[null,null,null,null,null,null,null,null,null,null,null,null,7017213271,"Общество с ограниченной ответственностью \"Томлесдрев\""]
[null,null,null,null,null,null,null,null,null,null,null,null,7017215078,"Общество с ограниченной ответственностью Управляющая компания «Северо-Восточный Комплекс»"]
[null,null,null,null,null,null,null,null,null,null,null,null,7017230213,"Общество с ограниченной ответственностью \"ОБЛГАЗ ремсервис\""]
[null,null,null,null,null,null,null,null,null,null,null,null,7017234955,"Закрытое акционерное общество \"Томскэнергобаланс\""]
[null,null,null,null,null,null,null,null,null,null,null,null,7017245330,"Общество с ограниченной ответственностью \"Сетевая компания ТДСК\""]
[null,null,null,null,null,null,null,null,null,null,null,null,7017253147,"Государственное унитарное предприятие Томской области  \"Областное дорожное ремонтно - строительное управление\""]
[null,null,null,null,null,null,null,null,null,null,null,null,7017253147,"Государственное унитарное предприятие Томской области \"Областное дорожное ремонтно - строительное управление\""]
[null,null,null,null,null,null,null,null,null,null,null,null,7017262173,"Общество с ограниченной ответственностью \"ГазЭкс\""]
[null,null,null,null,null,null,null,null,null,null,null,null,7017270664,"Общество с ограниченной ответственностью \"Томскводоканал\""]
[null,null,null,null,null,null,null,null,null,null,null,null,7017279410,"Общество с ограниченной ответственностью \"Электросети\""]
[null,null,null,null,null,null,null,null,null,null,null,null,7017291311,"Общество с ограниченной ответственностью \"Колос-С\""]
[null,null,null,null,null,null,null,null,null,null,null,null,7017291449,"Общество с ограниченной ответственностью \"Томсктеплоэнерго\""]
[null,null,null,null,null,null,null,null,null,null,null,null,7017301312,"Общество с ограниченной ответственностью \"Томская Строительная Компания\""]
[null,null,null,null,null,null,null,null,null,null,null,null,7017318531,"Общество с ограниченной ответственностью \"ЭнергоТЭК\""]
[null,null,null,null,null,null,null,null,null,null,null,null,7017323595,"Общество с ограниченной ответственностью \"Тепловая компания \"Стандарт\""]
[null,null,null,null,null,null,null,null,null,null,null,null,7017332670,"Общество с ограниченной ответственностью \"СМП-95 Инжиниринг\""]
[null,null,null,null,null,null,null,null,null,null,null,null,7017338351,"ОБЩЕСТВО С ОГРАНИЧЕННОЙ ОТВЕТСТВЕННОСТЬЮ УПРАВЛЯЮЩАЯ КОМПАНИЯ \"СЕВЕРО-ВОСТОЧНЫЙ КОМПЛЕКС +\""]
[null,null,null,null,null,null,null,null,null,null,null,null,7017351521,"акционерное общество \"ТомскРТС\""]
[null,null,null,null,null,null,null,null,null,null,null,null,7017353261,"Общество с ограниченной ответственностью \"Томскэнергобаланс\""]
[null,null,null,null,null,null,null,null,null,null,null,null,7018007264,"Федеральное государственное автономное образовательное учреждение высшего образования \"Национальный исследовательский Томский политехнический университет\""]
[null,null,null,null,null,null,null,null,null,null,null,null,7018011599,"Общество с ограниченной ответсвенностью \"Научно-производственное общество \"Мипор\""]
[null,null,null,null,null,null,null,null,null,null,null,null,7019035722,"Открытое акционерное общество \"Томскгазпром\""]
[null,null,null,null,null,null,null,null,null,null,null,null,7020008610,"Открытое акционерное общество Финансово-строительная компания \"Газ Химстрой Инвест\""]
[null,null,null,null,null,null,null,null,null,null,null,null,7020012261,"Акционерное общество \"Сибкабель\""]
[null,null,null,null,null,null,null,null,null,null,null,null,7020035798,"Федеральное казенное учреждение \"Исправительная колония № 3 Управления Федеральной службы исполнения наказаний по Томской области\""]
[null,null,null,null,null,null,null,null,null,null,null,null,7020037139,"Общество с ограниченной ответственностью Научно-производственное предприятие \"Томская электронная компания\""]
[null,null,null,null,null,null,null,null,null,null,null,null,7021000501,"Открытое акционерное общество \"Манотомь\""]
[null,null,null,null,null,null,null,null,null,null,null,null,7021001569,"Федеральное государственное унитарное предприятие \"Комбинат коммунальных предприятий Томского научного центра  Сибирского отделения Российской академии наук\""]
[null,null,null,null,null,null,null,null,null,null,null,null,7021020040,"Общество с ограниченной ответственностью \"Старт-М\""]
[null,null,null,null,null,null,null,null,null,null,null,null,7021056857,"Общество с ограниченной ответственностью \"Евростройинвест\""]
[null,null,null,null,null,null,null,null,null,null,null,null,7022000310,"Открытое акционерное общество \"Томскнефть\" Восточной Нефтяной Компании"]
[null,null,null,null,null,null,null,null,null,null,null,null,7022010478,"Муниципальное унитарное предприятие \"Жилкомсервис\" Александровского сельского поселения"]
[null,null,null,null,null,null,null,null,null,null,null,null,7022010799,"Общество с ограниченной ответственностью \"Энергонефть Томск\""]
[null,null,null,null,null,null,null,null,null,null,null,null,7022011087,"Общество с ограниченной ответственностью \"Стрежевой теплоэнергоснабжение\""]
[null,null,null,null,null,null,null,null,null,null,null,null,7022014560,"Закрытое акционерное общество \"ЭнергоСервис\""]
[null,null,null,null,null,null,null,null,null,null,null,null,7022014835,"Муниципальное унитарное предприятие \"Комсервис\" Лукашкин-Ярского сельского поселения Александровского района Томской области"]
[null,null,null,null,null,null,null,null,null,null,null,null,7022014842,"Муниципальное унитарное предприятие \"Жилищно-коммунальное хозяйство\" с.Назино"]
[null,null,null,null,null,null,null,null,null,null,null,null,7022014874,"Муниципальное унитарное предприятие \"Комсервис\" Александровского района Томской области"]
[null,null,null,null,null,null,null,null,null,null,null,null,7022017561,"Общество с ограниченной ответственностью \"Транспортные коммунальные системы\""]
[null,null,null,null,null,null,null,null,null,null,null,null,7022018300,"Общество с ограниченной ответственностью \"Жилстрой\""]
[null,null,null,null,null,null,null,null,null,null,null,null,7022019336,"Общество с ограниченной ответственностью \"ТРАНССИБ\""]
[null,null,null,null,null,null,null,null,null,null,null,null,7023005209,"Общество с ограниченной ответственностью \"Северная Тепловая Компания\""]
[null,null,null,null,null,null,null,null,null,null,null,null,7024021972,"Общество с ограниченной ответственностью \"Экополис\""]
[null,null,null,null,null,null,null,null,null,null,null,null,7024024719,"Открытое акционерное общество \"Городские электрические сети\""]
[null,null,null,null,null,null,null,null,null,null,null,null,7024024853,"Открытое акционерное общество \"Северский водоканал\""]
[null,null,null,null,null,null,null,null,null,null,null,null,7024024860,"Открытое акционерное общество \"Тепловые сети\""]
[null,null,null,null,null,null,null,null,null,null,null,null,7024028054,"Общество с ограниченной ответственностью \"Полигон твердых бытовых отходов комбината благоустройства\""]
[null,null,null,null,null,null,null,null,null,null,null,null,7024029499,"Акционерное общество \"Сибирский химический комбинат\""]
[null,null,null,null,null,null,null,null,null,null,null,null,7024032100,"Общество с ограниченной ответственностью \"ВКХ\""]
[null,null,null,null,null,null,null,null,null,null,null,null,7024032117,"Общество с ограниченной ответственностью \"Тепло\""]
[null,null,null,null,null,null,null,null,null,null,null,null,7024032131,"Общество с ограниченной ответственностью \"Сети\""]
[null,null,null,null,null,null,null,null,null,null,null,null,7024033488,"Общество с ограниченной ответственностью \"Управление энергоснабжения\""]
[null,null,null,null,null,null,null,null,null,null,null,null,7024035693,"Общество с ограничеснной ответственностью \"Электросети\""]
[null,null,null,null,null,null,null,null,null,null,null,null,7024037595,"Общество с ограниченной ответственностью \"СЕВЕРСКИЕ ЭНЕРГЕТИЧЕСКИЕ СЕТИ\""]
[null,null,null,null,null,null,null,null,null,null,null,null,7024038704,"ОБЩЕСТВО С ОГРАНИЧЕННОЙ ОТВЕТСТВЕННОСТЬЮ \"ТЕПЛО ПЛЮС\""]
[null,null,null,null,null,null,null,null,null,null,null,null,7024038856,"ОБЩЕСТВО С ОГРАНИЧЕННОЙ ОТВЕТСТВЕННОСТЬЮ \"ТЕПЛОВОДОСНАБЖАЮЩАЯ КОМПАНИЯ \"ОРЛОВСКАЯ\""]
[null,null,null,null,null,null,null,null,null,null,null,null,7024038863,"ОБЩЕСТВО С ОГРАНИЧЕННОЙ ОТВЕТСТВЕННОСТЬЮ \"ВКХ \"САМУСЬ\""]
[null,null,null,null,null,null,null,null,null,null,null,null,7224031400,"Акционерное общество \"Сибирская Аграрная Группа Мясопереработка\""]
[null,null,null,null,null,null,null,null,null,null,null,null,7702707386,"Филиал \"Новосибирский\" ОАО \"Славянка\""]
[null,null,null,null,null,null,null,null,null,null,null,null,7703591134,"Акционерное общество \"Особые экономические зоны\""]
[null,null,null,null,null,null,null,null,null,null,null,null,7704726225,"филиал \"Сибирский\" ОАО \"Оборонэнерго\""]
[null,null,null,null,null,null,null,null,null,null,null,null,7704731218,"Акционерное общество \"Оборонэнергосбыт\""]
[null,null,null,null,null,null,null,null,null,null,null,null,7704731218,"Открытое акционерное общество \"Оборонэнергосбыт\""]
[null,null,null,null,null,null,null,null,null,null,null,null,7705750968,"ОАО \"Межрегионэнергосбыт\""]
[null,null,null,null,null,null,null,null,null,null,null,null,7706284124,"Общество с ограниченной ответственностью \"РУСЭНЕРГОСБЫТ\""]
[null,null,null,null,null,null,null,null,null,null,null,null,7706288496,"Общество с ограниченной ответственностью \"Русэнергоресурс\""]
[null,null,null,null,null,null,null,null,null,null,null,null,7706525041,"Общество с ограниченной ответственностью \"РН-Энерго\""]
[null,null,null,null,null,null,null,null,null,null,null,null,7706757331,"Акционерное общество \"ОБЪЕДИНЕННАЯ ТЕПЛОЭНЕРГЕТИЧЕСКАЯ КОМПАНИЯ\" (АО \"ОТЭК\") Филиал в г.Северске"]
[null,null,null,null,null,null,null,null,null,null,null,null,7707049388,"МРФ \"Сибирь\" ОАО \"Ростелеком\""]
[null,null,null,null,null,null,null,null,null,null,null,null,7708503727,"Кузбасский территорильный  участок Западно-Сибирской дирекции по тепловодоснабжению - структурного подразделения Центральной дирекции по тепловодоснабжению-филиал ОАО \"РЖД\""]
[null,null,null,null,null,null,null,null,null,null,null,null,7708670340,"Открытое акционерное общество \"ТрансВудСервис\""]
[null,null,null,null,null,null,null,null,null,null,null,null,7714783092,"открытое акционерное общество «Ремонтно-эксплуатационное управление»"]
[null,null,null,null,null,null,null,null,null,null,null,null,7717127211,"Федеральное государственное унитарное предприятие \"Российская телевизионная и радиовещательная сеть\""]
[null,null,null,null,null,null,null,null,null,null,null,null,7722292838,"Федеральное государственное унитарное предприятие \"Научно-производственное объединение по медицинским иммунобиологическим препаратам \"Микроген\" Министерства здравоохранения Российской Федерации"]
[null,null,null,null,null,null,null,null,null,null,null,null,7723011906,"Открытое акционерное общество \"Связь объектов транспорта и добычи нефти\""]
[null,null,null,null,null,null,null,null,null,null,null,null,7724261610,"ФГУП \"Почта России\""]
[null,null,null,null,null,null,null,null,null,null,null,null,7727276526,"ОАО \"Сибурэнергоменеджмент\""]
[null,null,null,null,null,null,null,null,null,null,null,null,7736520080,"ОАО \"Мосэнергосбыт\""]
[null,null,null,null,null,null,null,null,null,null,null,null,8601022317,"ОАО \"ЮТЭК\""]
[null,null,null,null,null,null,null,null,null,null,null,null,543310909351,"Индивидуальный предприниматель Суханов Олег Николаевич"]
[null,null,null,null,null,null,null,null,null,null,null,null,700400687080,"Индивидуальный предприниматель Ковыряхин Юрий Анатольевич"]
[null,null,null,null,null,null,null,null,null,null,null,null,700500339834,"Индивидуальный предприниматель Маслов Сергей Афанасьевич"]
[null,null,null,null,null,null,null,null,null,null,null,null,700501702507,"Индивидуальный предприниматель Антипин Андрей Федорович"]
[null,null,null,null,null,null,null,null,null,null,null,null,700700053744,"Индивидуальный предприниматель Волшуков Виктор Николаевич"]
[null,null,null,null,null,null,null,null,null,null,null,null,700702236158,"Индивидуальный предприниматель Петров Василий Николаевич"]
[null,null,null,null,null,null,null,null,null,null,null,null,700703630277,"Индивидуальный предприниматель Бурцев Дмитрий Валерьевич"]
[null,null,null,null,null,null,null,null,null,null,null,null,700704480874,"Индивидуальный предприниматель Воронин Сергей Петрович"]
[null,null,null,null,null,null,null,null,null,null,null,null,701000127664,"Индивидуальный предприниматель Сысоев Владимир Геннадьевич"]
[null,null,null,null,null,null,null,null,null,null,null,null,701100720660,"Индивидуальный предприниматель Стрельников Сергей Владимирович"]
[null,null,null,null,null,null,null,null,null,null,null,null,701101197192,"Индивидуальный предприниматель Михайлов Андрей Васильевич"]
[null,null,null,null,null,null,null,null,null,null,null,null,701401371204,"Индивидуальный предприниматель Тимофеев Юрий Никитович"]
[null,null,null,null,null,null,null,null,null,null,null,null,701401633450,"Ииндивидуальный предприниматель Градовец Александр Владимирович"]
[null,null,null,null,null,null,null,null,null,null,null,null,702280350128,"Индивидуальный предприниматель Голованов Андрей Николаевич"]
[null,null,null,null,null,null,null,null,null,null,null,null,7017373959,"Акционерное общество \"Томская генерация\""]
[null,null,null,null,null,null,null,null,null,null,null,null,7014058606,"ОБЩЕСТВО С ОГРАНИЧЕННОЙ ОТВЕТСТВЕННОСТЬЮ \"СМП-95 ЭНЕРГО\""]
[null,null,null,null,null,null,null,null,null,null,null,null,5116000922,"Акционерное общество \"Главное управление жилищно-коммунального хозяйства\""]
[null,null,null,null,null,null,null,null,null,null,null,null,7017374014,"Общество с ограниченной ответсвенностью \"Городские очистные сооружения\""]
[null,null,null,null,null,null,null,null,null,null,null,null,7014046745,"Общество с ограниченной ответственностью \"Энергопарк\""]
[null,null,null,null,null,null,null,null,null,null,null,null,7017137302,"Общество с ограниченной ответственностью \"Топ Венд\""]
[null,null,null,null,null,null,null,null,null,null,null,null,7017379728,"Общество с ограниченной ответственностью \"ЭНЕРГОБАЛАНС\""]
[null,null,null,null,null,null,null,null,null,null,null,null,7017326170,"Общество с ограниченной ответственностью \"Аргентум\""]
[null,null,null,null,null,null,null,null,null,null,null,null,7024040076,"Общество с ограниченной ответственностью \"СЕТИ Плюс\""]
[null,null,null,null,null,null,null,null,null,null,null,null,7017380970,"Общество с ограниченной ответственностью \"Томские электрические сети\""]
[null,null,null,null,null,null,null,null,null,null,null,null,7010002916,"Общество с ограниченной ответственностью \"Водовод\""]
[null,null,null,null,null,null,null,null,null,null,null,null,7002017059,"Общество с ограниченной ответственностью \"АКОС\""]
[null,null,null,null,null,null,null,null,null,null,null,null,7014059920,"Муниципальное унитарное предприятие Спасского сельского поселения \"ТЕХНИК\""]
[null,null,null,null,null,null,null,null,null,null,null,null,7014057779,"Муниципальное унитарное предприятие \"ТУРУНТАЕВО-ПАРТНЕР\""]
[null,null,null,null,null,null,null,null,null,null,null,null,7017375240,"Общество с ограниченной ответственностью \"ДНР\""]
[null,null,null,null,null,null,null,null,null,null,null,null,7706284445,"Общество с ограниченной ответственностью \"ЭНЕРГОПРОМСБЫТ\""]
[null,null,null,null,null,null,null,null,null,null,null,null,7014059825,"Муниципальное унитарное предприятие Мирненского сельского поселения \"ВК\""]
[null,null,null,null,null,null,null,null,null,null,null,null,7017243477,"Общество с ограниченной ответственностью \"Стройтехмонтаж\""]
[null,null,null,null,null,null,null,null,null,null,null,null,7017302404,"Общество с ограниченной ответственностью \"Томск-Стирол\""]
[null,null,null,null,null,null,null,null,null,null,null,null,7010005579,"Администрация Тунгусовского сельского поселения"]
[null,null,null,null,null,null,null,null,null,null,null,null,7014060130,"ООО \"СИБТЕРМ-К ТОМСКОЕ\""]
[null,null,null,null,null,null,null,null,null,null,null,null,7017387422,"Общество с ограниченной ответственностью \"Сетевая компания Северска\""]
[null,null,null,null,null,null,null,null,null,null,null,null,7012005831,"Общество с ограниченной ответственностью СМП \"Чулымское\""]
[null,null,null,null,null,null,null,null,null,null,null,null,7708503727,"Западно-Сибирская дирекция по энергообеспечению-Трансэнерго, филиала ОАО \"РЖД\""]

{"sheet":"данные об организации","index":3,"n_rows":28,"n_cols":7,"rows_kept":28,"cut":false,"hidden":false,"merged":[[7,2,7,9],[20,1,21,1],[20,2,21,2],[13,5,13,9],[16,1,16,5],[1,0,1,9],[10,0,10,9],[12,4,12,9],[12,0,12,3],[13,0,13,3],[3,0,3,1],[4,0,4,1],[5,0,5,1],[6,0,6,1],[8,2,8,9],[7,0,7,1],[8,0,8,1],[3,2,3,9],[4,2,4,9],[5,2,5,9],[6,2,6,9],[22,1,22,3],[24,1,25,1],[24,2,25,2],[26,1,27,1],[26,2,27,2]]}
[]
["Краткие сведения об организации"]
[]
["Наименование организации:",null,{"$f":"Титульный!C10","v":" "}]
["Юридический адрес:"]
["Тел/факс:"]
["E-mail:"]
["Должность руководителя"]
["Ф.И.О. (полностью)"]
[]
["Наименование населенного пункта, в котором организация осуществляет деятельность по водоснабжению"]
[]
["Наименование МО",null,null,null,"Наименование населенного пункта"]
[{"$f":"Титульный!C7","v":""},null,null,null,1]
[]
[]
[null,"Сведения об установленных тарифах на 2015 год"]
[]
[null,"№ приказа ДТР ТО","дата приказа","срок действия тарифа","величина тарифа, руб/куб.м.","НДС"]
[]
[null,null,null,null,null,{"$f":"IF(Титульный!C23=\"Общая\",\"без учета НДС\",\"НДС не предусмотрен\")","v":"НДС не предусмотрен"},"1-е полугодие"]
[null,null,null,null,null,{"$f":"F21","v":"НДС не предусмотрен"},"2-е полугодие"]
[null,"в том числе по компонентам"]
[null,"наименование компонента","наименование организации, поставляющей ресурс","срок действия тарифа","ед.изм","величина компоненты"]
[null,"холодная вода",null,{"$f":"D21","v":0},"руб/куб.м."]
[null,null,null,{"$f":"D22","v":0},"руб/куб.м."]
[null,"тепловая энергия",null,{"$f":"D21","v":0},"руб/Гкал"]
[null,null,null,{"$f":"D22","v":0},"руб/Гкал"]

{"sheet":"Техн характер системы","index":4,"n_rows":48,"n_cols":4,"rows_kept":48,"cut":false,"hidden":false,"merged":[[3,0,3,3],[0,0,0,3]]}
[{"$f":"Титульный!C10","v":" "}]
[]
[]
["Имущество, переданное по договору аренды (концессионному соглашению) и (или) принадлежащее на праве собственности"]
[]
["№ п/п","Показатель","Ед. изм.","Значение"]
["1","Установленная производительность оборудования","куб.м."]
["1.1","оборудование ЦТП","куб.м."]
["1.2","оборудование системы транспортирования воды","куб.м."]
[2,"Фактическая производительность оборудования","куб.м."]
["2.1","оборудование ЦТП","куб.м."]
["2.2","оборудование системы транспортирования воды","куб.м."]
["3","Уровень загрузки производственных мощностей","%",{"$f":"IF(SUM(F14:F15)=0,0,AVERAGE((F14:F15)))","v":0}]
["3.1","оборудование ЦТП","%",{"$f":"(IF(D8=0,0,D11/D8))*100","v":0}]
["3.2","оборудование системы транспортирования воды","%",{"$f":"(IF(D9=0,0,D12/D9))*100","v":0}]
["4","Общая протяженность сетей водоснабжения","м",{"$f":"SUM(D17:D26)","v":0}]
["4.1",null,"м"]
["4.2",null,"м"]
["4.3",null,"м"]
["4.4",null,"м"]
["4.5",null,"м"]
["4.6",null,"м"]
["4.7",null,"м"]
["4.8",null,"м"]
["4.9",null,"м"]
["4.10",null,"м"]
["5","Количество ЦТП","ед."]
["6","Износ систем коммунальной инфраструктуры, в том числе:","%",{"$f":"IF(SUM(F29:F30)=0,0,AVERAGE((F29:F30)))","v":0}]
["6.1","оборудование ЦТП","%",{"$f":"IF(D35=0,0,D32/D35*100)","v":0}]
["6.2","оборудование системы транспортирования воды","%",{"$f":"IF(D36=0,0,D33/D36*100)","v":0}]
["7","Фактический срок службы оборудования, в том числе:","лет"]
["7.1","оборудование ЦТП","лет"]
["7.2","оборудование системы транспортирования воды","лет"]
["8","Нормативный срок службы оборудования, в том числе:","лет"]
["8.1","оборудование ЦТП","лет"]
["8.2","оборудование системы транспортирования воды","лет"]
["9","Удельный вес сетей, нуждающихся в замене","%",{"$f":"IF(D16=0,0,D38/D16*100)","v":0}]
["10","Протяженность сетей, нуждающихся в замене","м",{"$f":"SUM(D39:D48)","v":778}]
["10.1",{"$f":"B17","v":0},"м"]
["10.2",{"$f":"B18","v":0},"м",778]
["10.3",0,"м"]
["10.4",0,"м"]
["10.5",0,"м"]
["10.6",0,"м"]
["10.7",0,"м"]
["10.8",0,"м"]
["10.9",0,"м"]
["10.10",0,"м"]

{"sheet":"Техн характер системы (бсх)","index":5,"n_rows":62,"n_cols":4,"rows_kept":62,"cut":false,"hidden":false,"merged":[[0,0,0,3],[3,0,3,3]]}
[{"$f":"Титульный!C10","v":" "}]
[]
[]
["Бесхозяйное имущество"]
[]
["№ п/п","Показатель","Ед. изм.","Значение"]
["1","Установленная производительность оборудования","куб.м."]
["1.1","оборудование ЦТП","куб.м."]
["1.2","оборудование системы транспортирования воды","куб.м."]
[2,"Фактическая производительность оборудования","куб.м."]
["2.1","оборудование ЦТП","куб.м."]
["2.2","оборудование системы транспортирования воды","куб.м."]
["3","Уровень загрузки производственных мощностей","%",{"$f":"IF(SUM(F14:F15)=0,0,AVERAGE((F14:F15)))","v":0}]
["3.1","оборудование ЦТП","%",{"$f":"(IF(D8=0,0,D11/D8))*100","v":0}]
["3.2","оборудование системы транспортирования воды","%",{"$f":"(IF(D9=0,0,D12/D9))*100","v":0}]
["4","Общая протяженность сетей водоснабжения","м",{"$f":"SUM(D17:D26)","v":0}]
["4.1",null,"м"]
["4.2",null,"м"]
["4.3",null,"м"]
["4.4",null,"м"]
["4.5",null,"м"]
["4.6",null,"м"]
["4.7",null,"м"]
["4.8",null,"м"]
["4.9",null,"м"]
["4.10",null,"м"]
["5","Количество ЦТП","ед."]
["6","Износ систем коммунальной инфраструктуры, в том числе:","%",{"$f":"IF(SUM(F29:F30)=0,0,AVERAGE((F29:F30)))","v":0}]
["6.1","оборудование ЦТП","%",{"$f":"IF(D35=0,0,D32/D35*100)","v":0}]
["6.2","оборудование системы транспортирования воды","%",{"$f":"IF(D36=0,0,D33/D36*100)","v":0}]
["7","Фактический срок службы оборудования, в том числе:","лет"]
["7.1","оборудование ЦТП","лет"]
["7.2","оборудование системы транспортирования воды","лет"]
["8","Нормативный срок службы оборудования, в том числе:","лет"]
["8.1","оборудование ЦТП","лет"]
["8.2","оборудование системы транспортирования воды","лет"]
["9","Удельный вес сетей, нуждающихся в замене","%",{"$f":"IF(D16=0,0,D38/D16*100)","v":0}]
["10","Протяженность сетей, нуждающихся в замене","м",{"$f":"SUM(D39:D48)","v":778}]
["10.1",{"$f":"B17","v":0},"м"]
["10.2",{"$f":"B18","v":0},"м",778]
["10.3",0,"м"]
["10.4",0,"м"]
["10.5",0,"м"]
["10.6",0,"м"]
["10.7",0,"м"]
["10.8",0,"м"]
["10.9",0,"м"]
["10.10",0,"м"]
["11","Наличие объектов и сетей без оформленных документов (кадастр, договор аренды и т.д.)"]
["11.1","оборудование ЦТП","ед."]
["11.1.1","      производительность ЦТП"]
["11.2","      протяженность сетей","м",{"$f":"SUM(D53:D62)","v":0}]
["11.2.1",{"$f":"B39","v":0},"м"]
["11.2.2",{"$f":"B40","v":0},"м"]
["11.2.3",0,"м"]
["11.2.4",0,"м"]
["11.2.5",0,"м"]
["11.2.6",0,"м"]
["11.2.7",0,"м"]
["11.2.8",0,"м"]
["11.2.9",0,"м"]
["11.2.10",0,"м"]

{"sheet":"полезный отпуск","index":6,"n_rows":26,"n_cols":7,"rows_kept":26,"cut":false,"hidden":false,"merged":[[0,0,0,6],[1,0,1,6],[5,0,12,0],[8,1,12,1],[10,4,12,4],[10,5,12,5],[10,2,12,2],[10,3,12,3],[6,1,7,6],[5,1,5,6],[8,2,8,6],[9,4,9,6],[10,6,12,6]]}
["Сводный отчет об объемах отпущенной горячей воды на собственное потребление и сторонним потребителям"]
[{"$f":"Титульный!C10","v":" "}]
["Район",{"$f":"Титульный!C6","v":""},null,null,"МО",{"$f":"Титульный!C7","v":""}]
[]
[]
["Период","Объем реализации, куб.м."]
[null,"ВСЕГО по тарифу"]
[]
[null,"всего","в том числе:"]
[null,null,"собственное потребление",null,"сторонние потребители"]
[null,null,"Итого","Итого","бюджет","население","прочие"]
[]
[]
["Январь",{"$f":"C14+D14","v":0},null,{"$f":"SUM(E14:G14)","v":0}]
["Февраль",0,null,{"$f":"SUM(E15:G15)","v":0}]
["Март",0,null,0]
["Апрель",0,null,0]
["Май",0,null,0]
["Июнь",0,null,0]
["Июль",0,null,0]
["Август",0,null,0]
["Сентябрь",0,null,0]
["Октябрь",0,null,0]
["Ноябрь",0,null,0]
["Декабрь",0,null,0]
["Итого год",{"$f":"SUM(B14:B25)","v":0},{"$f":"SUM(C14:C25)","v":0},{"$f":"SUM(D14:D25)","v":0},{"$f":"SUM(E14:E25)","v":0},{"$f":"SUM(F14:F25)","v":0},{"$f":"SUM(G14:G25)","v":0}]

{"sheet":"баланс ВСН","index":7,"n_rows":34,"n_cols":4,"rows_kept":34,"cut":false,"hidden":false,"merged":[[0,0,0,3],[2,0,2,3],[6,3,7,3],[1,0,1,3],[6,0,7,0],[6,1,7,1],[6,2,7,2]]}
["БАЛАНС ВОДОСНАБЖЕНИЯ"]
[{"$f":"Титульный!C10","v":" "}]
[{"$f":"Титульный!C19","v":"горячее водоснабжение (закрытая система)"}]
[]
["Район",{"$f":"Титульный!C6","v":""},"МО",{"$f":"Титульный!C7","v":""}]
[]
["№ п/п","Показатели","Единица измерения","ВСЕГО по тарифу"]
[]
["1","Приготовление горячей воды",null,{"$f":"D10+D11","v":0}]
["1.1","Объем воды из собственных источников","м3"]
["1.2","Объем приобретенной питьевой воды","м3",{"$f":"D13-D10","v":0}]
["2","Транспортировка горячей воды"]
["2.1","Объем воды, поступившей в сеть","м3",{"$f":"D14+D15+D17","v":0}]
["2.2","Потери воды при транспортировке","м3"]
["2.3","Потребление на собственные нужды","м3",{"$f":"'полезный отпуск'!C26","v":0}]
["3","Отпуск горячей воды"]
["3.1","Объем воды, отпущенной абонентам","м3",{"$f":"D18+D21+D24","v":0}]
["3.1.1","Бюджетным потребителям",null,{"$f":"'полезный отпуск'!E26","v":0}]
["3.1.1.1","По приборам учета","м3",{"$f":"D18-D20","v":0}]
["3.1.1.2","По нормативам","м3"]
["3.1.2","Населению","м3",{"$f":"'полезный отпуск'!F26","v":0}]
["3.1.2.1","По приборам учета","м3",{"$f":"D21-D23","v":0}]
["3.1.2.2","По нормативам","м3"]
["3.1.3","Прочим потребителям","м3",{"$f":"'полезный отпуск'!G26","v":0}]
["3.1.3.1","По приборам учета","м3",{"$f":"D24-D26","v":0}]
["3.1.3.2","По нормативам","м3"]
["3.2","В соответствии с санитарными нормами","м3"]
["3.3","С нарушениями санитарных норм","м3"]
["3.3.1","По температуре","м3"]
["3.3.2","По качеству воды","м3"]
["4","Удельное потребление горячей воды населением","м3/час",{"$f":"D21/(24*365)","v":0}]
["5","Объем отпущенной воды на 1 человека","м3/чел в мес.",{"$f":"IF((12*D34)=0,0,D21/(12*D34))","v":0}]
[null,"Справочно:"]
["6","Численность населения, получающего услуги организации","Чел"]

{"sheet":"отчет по реализации","index":8,"n_rows":76,"n_cols":11,"rows_kept":76,"cut":false,"hidden":false,"merged":[[43,7,73,7],[8,1,8,9],[41,1,41,9],[10,7,40,7],[0,0,0,10],[6,0,7,0],[6,1,7,1],[6,2,7,2],[6,4,6,6],[6,7,7,7],[6,8,6,10],[1,0,1,10],[2,0,2,10],[3,8,3,10],[4,3,4,6],[6,3,7,3]]}
["Сводный отчет по выручке от реализации холодной воды"]
[{"$f":"Титульный!C10","v":" "}]
[{"$f":"Титульный!C19","v":"горячее водоснабжение (закрытая система)"}]
[null,"Район",{"$f":"Титульный!C6","v":""},null,null,null,null,"МО",{"$f":"Титульный!C7","v":""}]
[]
[]
["№","Вид потребителя","Степень благоустройства, наименование скота","Нормы потребления горячего водоснабжения, куб.м. в месяц (на 1 чел)","Объем потребления горячей воды, куб.м.",null,null,"тариф на горячую воду, руб/куб.м.","Сумма, руб"]
[null,null,null,null,"норматив","прибор учета","Итого",null,"норматив","прибор учета","Итого"]
[null,"1-е полугодие 2015года"]
["1.","Население "]
["1.1."," хозяйственно-питьевые нужды","Квартиры с ваннами длиной от 1500 до 1700 мм, оборудованными душами",null,null,null,{"$f":"SUM(E11:F11)","v":0},{"$f":"'данные об организации'!$E$21","v":0},{"$f":"E11*$H$11","v":0},{"$f":"F11*$H$11","v":0},{"$f":"SUM(I11:J11)","v":0}]
["1.2."," хозяйственно-питьевые нужды","Квартиры с ваннами сидячими, оборудованными душами",null,null,null,{"$f":"SUM(E12:F12)","v":0},null,{"$f":"E12*$H$11","v":0},{"$f":"F12*$H$11","v":0},0]
["1.3."," хозяйственно-питьевые нужды",null,null,null,null,0,null,0,0,0]
["1.4."," хозяйственно-питьевые нужды",null,null,null,null,0,null,0,0,0]
["1.5."," хозяйственно-питьевые нужды",null,null,null,null,0,null,0,0,0]
["1.6."," хозяйственно-питьевые нужды",null,null,null,null,0,null,0,0,0]
["1.7."," хозяйственно-питьевые нужды",null,null,null,null,0,null,0,0,0]
["1.8."," хозяйственно-питьевые нужды",null,null,null,null,0,null,0,0,0]
["1.9."," хозяйственно-питьевые нужды",null,null,null,null,0,null,0,0,0]
["1.10."," хозяйственно-питьевые нужды",null,null,null,null,0,null,0,0,0]
["1.11."," хозяйственно-питьевые нужды",null,null,null,null,0,null,0,0,0]
["1.12."," хозяйственно-питьевые нужды",null,null,null,null,0,null,0,0,0]
["1.13."," хозяйственно-питьевые нужды",null,null,null,null,0,null,0,0,0]
["1.14."," хозяйственно-питьевые нужды",null,null,null,null,0,null,0,0,0]
["1.15."," хозяйственно-питьевые нужды",null,null,null,null,0,null,0,0,0]
["1.16."," хозяйственно-питьевые нужды",null,null,null,null,0,null,0,0,0]
["1.17."," хозяйственно-питьевые нужды",null,null,null,null,0,null,0,0,0]
["1.18."," хозяйственно-питьевые нужды",null,null,null,null,0,null,0,0,0]
["1.19."," хозяйственно-питьевые нужды",null,null,null,null,0,null,0,0,0]
["1.20."," хозяйственно-питьевые нужды",null,null,null,null,0,null,0,0,0]
["1.21."," хозяйственно-питьевые нужды",null,null,null,null,0,null,0,0,0]
["1.22."," хозяйственно-питьевые нужды",null,null,null,null,0,null,0,0,0]
["1.23."," хозяйственно-питьевые нужды",null,null,null,null,0,null,0,0,0]
["1.24."," хозяйственно-питьевые нужды",null,null,null,null,0,null,0,0,0]
["1.25."," хозяйственно-питьевые нужды",null,null,null,null,0,null,0,0,0]
["1.26."," хозяйственно-питьевые нужды",null,null,null,null,0,null,0,0,0]
[null,"перерасчеты",null,"х","х","х","х",null,"х","х"]
[null,"Итого население",null,null,{"$f":"SUM(E11:E36)","v":0},{"$f":"SUM(F11:F36)","v":0},{"$f":"SUM(G11:G36)","v":0},null,{"$f":"SUM(I11:I36)","v":0},0,{"$f":"SUM(K11:K37)","v":0}]
["2.","Итого бюджет",null,null,null,null,{"$f":"SUM(E39:F39)","v":0},null,{"$f":"E39*$H$11","v":0},{"$f":"F39*$H$11","v":0},{"$f":"SUM(I39:J39)","v":0}]
["3.","Итого прочие",null,null,null,null,{"$f":"SUM(E40:F40)","v":0},null,0,0,{"$f":"SUM(I40:J40)","v":0}]
["4.","ВСЕГО 1-е полугодие",null,null,{"$f":"SUM(E38:E40)","v":0},0,0,null,0,0,0]
[null,"2-е полугодие 2015 года"]
["1.","Население "]
[{"$f":"A11","v":"1.1."},{"$f":"B11","v":" хозяйственно-питьевые нужды"},"Квартиры с ваннами длиной от 1500 до 1700 мм, оборудованными душами",0,null,null,{"$f":"SUM(E44:F44)","v":0},{"$f":"'данные об организации'!$E$22","v":0},{"$f":"E44*$H$44","v":0},{"$f":"F44*$H$44","v":0},{"$f":"SUM(I44:J44)","v":0}]
[{"$f":"A12","v":"1.2."}," хозяйственно-питьевые нужды","Квартиры с ваннами сидячими, оборудованными душами",0,null,null,{"$f":"SUM(E45:F45)","v":0},null,{"$f":"E45*$H$44","v":0},{"$f":"F45*$H$44","v":0},0]
[{"$f":"A13","v":"1.3."}," хозяйственно-питьевые нужды",0,0,null,null,0,null,0,0,0]
[{"$f":"A14","v":"1.4."}," хозяйственно-питьевые нужды",0,0,null,null,0,null,0,0,0]
[{"$f":"A15","v":"1.5."}," хозяйственно-питьевые нужды",0,0,null,null,0,null,0,0,0]
[{"$f":"A16","v":"1.6."}," хозяйственно-питьевые нужды",0,0,null,null,0,null,0,0,0]
[{"$f":"A17","v":"1.7."}," хозяйственно-питьевые нужды",0,{"$f":"D17","v":0},null,null,0,null,0,0,0]
[{"$f":"A18","v":"1.8."}," хозяйственно-питьевые нужды",0,0,null,null,0,null,0,0,0]
[{"$f":"A19","v":"1.9."}," хозяйственно-питьевые нужды",0,0,null,null,0,null,0,0,0]
[{"$f":"A20","v":"1.10."}," хозяйственно-питьевые нужды",0,0,null,null,0,null,0,0,0]
[{"$f":"A21","v":"1.11."}," хозяйственно-питьевые нужды",0,0,null,null,0,null,0,0,0]
[{"$f":"A22","v":"1.12."}," хозяйственно-питьевые нужды",0,0,null,null,0,null,0,0,0]
[{"$f":"A23","v":"1.13."}," хозяйственно-питьевые нужды",0,0,null,null,0,null,0,0,0]
[{"$f":"A24","v":"1.14."}," хозяйственно-питьевые нужды",0,0,null,null,0,null,0,0,0]
[{"$f":"A25","v":"1.15."}," хозяйственно-питьевые нужды",0,0,null,null,0,null,0,0,0]
[{"$f":"A26","v":"1.16."}," хозяйственно-питьевые нужды",0,0,null,null,0,null,0,0,0]
[{"$f":"A27","v":"1.17."}," хозяйственно-питьевые нужды",0,0,null,null,0,null,0,0,0]
[{"$f":"A28","v":"1.18."}," хозяйственно-питьевые нужды",0,0,null,null,0,null,0,0,0]
[{"$f":"A29","v":"1.19."}," хозяйственно-питьевые нужды",0,0,null,null,0,null,0,0,0]
[{"$f":"A30","v":"1.20."}," хозяйственно-питьевые нужды",0,0,null,null,0,null,0,0,0]
[{"$f":"A31","v":"1.21."}," хозяйственно-питьевые нужды",0,0,null,null,0,null,0,0,0]
[{"$f":"A32","v":"1.22."}," хозяйственно-питьевые нужды",0,0,null,null,0,null,0,0,0]
[{"$f":"A33","v":"1.23."}," хозяйственно-питьевые нужды",0,0,null,null,0,null,0,0,0]
[{"$f":"A34","v":"1.24."}," хозяйственно-питьевые нужды",0,0,null,null,0,null,0,0,0]
[{"$f":"A35","v":"1.25."}," хозяйственно-питьевые нужды",0,0,null,null,0,null,0,0,0]
[{"$f":"A36","v":"1.26."}," хозяйственно-питьевые нужды",0,0,null,null,0,null,{"$f":"E69*$H$44","v":0},{"$f":"F69*$H$44","v":0},0]
[null,"перерасчеты",null,"х","х","х","х",null,"х","х"]
[null,"Итого население",null,null,{"$f":"SUM(E44:E69)","v":0},{"$f":"SUM(F44:F69)","v":0},{"$f":"SUM(G44:G69)","v":0},null,{"$f":"SUM(I44:I69)","v":0},0,{"$f":"SUM(K44:K70)","v":0}]
["2.","Итого бюджет",null,null,null,null,{"$f":"SUM(E72:F72)","v":0},null,{"$f":"E72*$H$44","v":0},{"$f":"F72*$H$44","v":0},{"$f":"SUM(I72:J72)","v":0}]
["3.","Итого прочие",null,null,null,null,{"$f":"SUM(E73:F73)","v":0},null,0,0,{"$f":"SUM(I73:J73)","v":0}]
["4.","ВСЕГО 2-е полугодие",null,null,{"$f":"SUM(E71:E73)","v":0},0,0,null,{"$f":"SUM(I71:I73)","v":0},0,0]
[]
["5.","ГОД ВСЕГО",null,null,{"$f":"E41+E74","v":0},0,0,null,0,0,0]

{"sheet":"Смета факт","index":9,"n_rows":21,"n_cols":3,"rows_kept":21,"cut":false,"hidden":false,"merged":[[8,0,10,0],[8,1,10,1],[0,0,0,2],[1,0,1,2],[2,0,2,2],[9,2,10,2]]}
["Фактическая смета расходов и НВВ по установленному тарифу в сфере водоснабжения за 2015 год"]
[{"$f":"Титульный!C10","v":" "}]
[{"$f":"Титульный!C19","v":"горячее водоснабжение (закрытая система)"}]
[]
["Район",{"$f":"Титульный!C6","v":""}]
[]
["МО",{"$f":"Титульный!C7","v":""}]
[]
["№ п/п","Наименование статьи","Сумма, руб"]
[null,null,"ВСЕГО"]
[]
["1.","Стоимость покупной воды"]
["2.","Стоимость тепловой энергии на подогрев воды"]
["3.","Финансовый результат "]
["IХ","НЕОБХОДИМАЯ ВАЛОВАЯ ВЫРУЧКА",{"$f":"C12+C13","v":0}]
["16.","Товарная продукция"]
["17.","Затраты на собственное потребление"]
["18.","Отпущено воды всего, м3, в том числе: ",{"$f":"'полезный отпуск'!B26","v":0}]
["18.1.","на собственное потребление",{"$f":"'полезный отпуск'!C26","v":0}]
["18.2.","сторонним потребителям",{"$f":"C18-C19","v":0}]
["X","Цена (тариф) на холодную воду, руб./м3",{"$f":"IF(C18=0,0,C15/C18)","v":0}]

{"sheet":"выручка по форме №2","index":10,"n_rows":109,"n_cols":3,"rows_kept":109,"cut":false,"hidden":false,"merged":[[1,0,1,2],[0,0,0,2],[3,0,4,0],[3,1,4,1],[3,2,4,2]]}
["Отчёт по бухгалтерской форме №2 за 2015 год  с детализацией по видам деятельности"]
[{"$f":"Титульный!C10","v":" "}]
[]
["№ п/п","Наименование показателя","Сумма, руб"]
[]
["I","Доходы и расходы по обычным видам деятельности"]
["1.1","Выручка (нетто) от продажи товаров, продукции, работ, услуг (за минусом налога на добавленную стоимость, акцизов и аналогичных обязательных платежей)",{"$f":"SUM(C8:C17)","v":0}]
["1.1.1","Поставка тепловой энергии"]
["1.1.2","Производство электроэнергии"]
["1.1.3","Поставка горячей воды"]
["1.1.4","Поставка холодной воды"]
["1.1.5","Водоотведение"]
["1.1.6","Очистка сточных вод"]
["1.1.7"]
["1.1.8"]
["1.1.9"]
["1.1.10","Прочие (нерегулируемые) виды деятельности"]
["1.2","Себестоимость проданных товаров, продукции, работ, услуг",{"$f":"SUM(C19:C28)","v":0}]
["1.2.1","Поставка тепловой энергии"]
["1.2.2","Производство электроэнергии"]
["1.2.3","Поставка горячей воды"]
["1.2.4","Поставка холодной воды"]
["1.2.5","Водоотведение"]
["1.2.6","Очистка сточных вод"]
["1.2.7"]
["1.2.8"]
["1.2.9"]
["1.2.10","Прочие (нерегулируемые) виды деятельности"]
["1.3","Валовая прибыль",{"$f":"SUM(C30:C39)","v":0}]
["1.3.1","Поставка тепловой энергии",{"$f":"C8-C19","v":0}]
["1.3.2","Производство электроэнергии",{"$f":"C9-C20","v":0}]
["1.3.3","Поставка горячей воды",0]
["1.3.4","Поставка холодной воды",0]
["1.3.5","Водоотведение",0]
["1.3.6","Очистка сточных вод",0]
["1.3.7",null,0]
["1.3.8",null,0]
["1.3.9",null,0]
["1.3.10","Прочие (нерегулируемые) виды деятельности",0]
["1.4","Коммерческие расходы",{"$f":"SUM(C41:C50)","v":0}]
["1.4.1","Поставка тепловой энергии"]
["1.4.2","Производство электроэнергии"]
["1.4.3","Поставка горячей воды"]
["1.4.4","Поставка холодной воды"]
["1.4.5","Водоотведение"]
["1.4.6","Очистка сточных вод"]
["1.4.7"]
["1.4.8"]
["1.4.9"]
["1.4.10","Прочие (нерегулируемые) виды деятельности"]
["1.5","Управленческие расходы",{"$f":"SUM(C52:C61)","v":0}]
["1.5.1","Поставка тепловой энергии"]
["1.5.2","Производство электроэнергии"]
["1.5.3","Поставка горячей воды"]
["1.5.4","Поставка холодной воды"]
["1.5.5","Водоотведение"]
["1.5.6","Очистка сточных вод"]
["1.5.7"]
["1.5.8"]
["1.5.9"]
["1.5.10","Прочие (нерегулируемые) виды деятельности"]
["1.6","Прибыль (убыток) от продаж ",{"$f":"SUM(C63:C72)","v":0}]
["1.6.1","Поставка тепловой энергии",{"$f":"C30-C41-C52","v":0}]
["1.6.2","Производство электроэнергии",{"$f":"C31-C42-C53","v":0}]
["1.6.3","Поставка горячей воды",0]
["1.6.4","Поставка холодной воды",0]
["1.6.5","Водоотведение",0]
["1.6.6","Очистка сточных вод",{"$f":"C35-C46-C57","v":0}]
["1.6.7",null,0]
["1.6.8",null,0]
["1.6.9",null,0]
["1.6.10","Прочие (нерегулируемые) виды деятельности",0]
["II","Прочие доходы и расходы",{"$f":"C74-C85","v":0}]
["2.3","Прочие доходы",{"$f":"SUM(C75:C84)","v":0}]
["2.3.1","Поставка тепловой энергии"]
["2.3.2","Производство электроэнергии"]
["2.3.3","Поставка горячей воды"]
["2.3.4","Поставка холодной воды"]
["2.3.5","Водоотведение"]
["2.3.6","Очистка сточных вод"]
["2.3.7"]
["2.3.8"]
["2.3.9"]
["2.3.10","Прочие (нерегулируемые) виды деятельности"]
["2.4","Прочие расходы",{"$f":"SUM(C86:C95)","v":0}]
["2.4.1","Поставка тепловой энергии"]
["2.4.2","Производство электроэнергии"]
["2.4.3","Поставка горячей воды"]
["2.4.4","Поставка холодной воды"]
["2.4.5","Водоотведение"]
["2.4.6","Очистка сточных вод"]
["2.4.7"]
["2.4.8"]
["2.4.9"]
["2.4.10","Прочие (нерегулируемые) виды деятельности"]
["3","Прибыль (убыток) до налогообложения ",{"$f":"SUM(C97:C106)","v":0}]
["3.1.1","Поставка тепловой энергии",{"$f":"C63+C75-C86","v":0}]
["3.1.2","Производство электроэнергии",{"$f":"C64+C76-C87","v":0}]
["3.1.3","Поставка горячей воды",0]
["3.1.4","Поставка холодной воды",0]
["3.1.5","Водоотведение",0]
["3.1.6","Очистка сточных вод",0]
["3.1.7",null,0]
["3.1.8",null,0]
["3.1.9",null,0]
["3.1.10","Прочие (нерегулируемые) виды деятельности",0]
["3.2.2","Текущий налог на прибыль"]
["3.2.3"]
[null,"Чистая прибыль (убыток) отчетного периода",{"$f":"C96-C107","v":0}]

{"sheet":"показатели надежн и качества","index":11,"n_rows":21,"n_cols":16,"rows_kept":21,"cut":false,"hidden":false,"merged":[[6,2,7,2],[0,9,0,16],[6,9,7,9],[6,10,7,12],[6,13,7,14],[6,15,6,16],[7,15,7,16],[2,0,2,3],[0,0,0,3],[1,0,1,3],[6,0,7,0],[6,1,7,1],[19,0,19,3],[16,10,16,12],[16,13,16,14],[16,15,16,16],[8,9,8,16],[9,10,9,12],[9,13,9,14],[9,15,9,16],[12,10,12,12],[12,13,12,14],[12,15,12,16],[8,0,8,3],[15,0,15,3],[15,9,15,16]]}
["Фактические значения показателей надежности, качества и энергетической эффективности объектов централизованных систем водоснабжения",null,null,null,null,null,null,null,null,"V. Плановые значения показателей надежности, качества и энергетической эффективности объектов централизованных систем водоснабжения"]
[{"$f":"Титульный!C10","v":" "}]
[{"$f":"Титульный!C19","v":"горячее водоснабжение (закрытая система)"}]
["район",{"$f":"Титульный!C6","v":""}]
["МО",{"$f":"Титульный!C7","v":""}]
[]
["№ п/п","Наименование показателя","ед. изм.","2015 год",null,null,null,null,null,"№ п/п","Наименование показателя",null,null,"ед. изм.",null,{"$f":"#REF!","v":{"$error":"#REF!"}}]
[null,null,null,"Значение",null,null,null,null,null,null,null,null,null,null,null,"Значение"]
["Показатели качества воды",null,null,null,null,null,null,null,null,"Показатели качества воды"]
[1,"Доля проб горячей воды в тепловой сети или в сети горячего водоснабжения, не соответствующих требованиям по температуре, в общем объеме проб, отобранных по результатам производственного контроля качества горячей воды","%",{"$f":"IF(D11=0,0,D12/D11*100)","v":0},"приложить отчеты о проведении исследований!",null,null,null,null,1,"Доля проб питьевой воды, подаваемой с водопроводных станций в распределительную водопроводную сеть, не соответствующих установленным требованиям, в общем объеме проб, отобранных по результатам производственного контроля качества питьевой воды",null,null,"%"]
["1.1.","количество проб горячей воды всего","ед",null,"если исследования не проводились поставить прочерк"]
["1.2.","количество проб проб горячей воды, не соответствующих требованиям по температуре","ед"]
[2,"Доля проб горячей воды в тепловой сети или в сети горячего водоснабжения, не соответствующих установленным требованиям (за исключением температуры), в общем объеме проб, отобранных по результатам производственного контроля качества горячей воды","%",{"$f":"IF(D14=0,0,D15/D14*100)","v":0},"приложить отчеты о проведении исследований!",null,null,null,null,2,"Доля проб питьевой воды в распределительной водопроводной сети, не соответствующих установленным требованиям, в общем объеме проб, отобранных по результатам производственного контроля качества питьевой воды",null,null,"%"]
["2..1.","количество проб питьевой воды всего","ед",{"$f":"D11","v":0}]
["2.2.","количество проб горячей воды, не соответствующих установленным требованиям (за исключением температуры)","ед"]
["Показатели надежности и бесперебойности водоснабжения",null,null,null,null,null,null,null,null,"Показатели надежности и бесперебойности водоснабжения"]
[1,"Количество зафиксированных перерывов в подаче горячей воды, возникших в результате аварий, повреждений и иных технологических нарушений","ед в год/ км",{"$f":"IF(D19=0,0,D18/D19)","v":0},"приложить подтверждающие документы!",null,null,null,null,1,"Количество зафиксированных перерывов в подаче холодной воды, возникших в результате аварий, повреждений и иных технологических нарушений",null,null,"ед в год/ км"]
["1.1.","количество зафиксированных перерывов в подаче горячей воды","ед"]
["1.2.","протяженность водопроводных сетей","км",{"$f":"'Техн характер системы'!D16+'Техн характер системы (бсх)'!D16/1000","v":0}]
["Показатели энергетической эффективности использования ресурсов"]
[1,"Удельное количество тепловой энергии, расходуемое на подогрев горячей воды","Гкал/куб.м.",null,"при применении двухкомпонентного тарифа приложить подтверждающие документы!"]

{"sheet":"отчет ПП1","index":12,"n_rows":49,"n_cols":21,"rows_kept":49,"cut":false,"hidden":false,"merged":[[45,12,46,12],[45,13,46,15],[45,16,46,16],[45,17,45,19],[47,13,47,15],[48,13,48,15],[40,12,40,19],[41,13,41,15],[44,14,44,15],[44,16,44,17],[31,12,31,19],[33,12,34,12],[33,13,34,15],[33,16,34,16],[33,17,33,19],[18,14,18,15],[18,16,18,17],[21,12,22,12],[21,13,22,16],[21,17,21,19],[23,13,23,16],[12,13,13,16],[12,17,12,19],[4,12,4,13],[4,14,4,19],[5,12,5,13],[5,14,5,19],[6,12,6,13],[6,14,6,19],[27,17,27,19],[1,12,1,13],[1,14,1,15],[1,16,1,17],[2,12,2,13],[2,14,2,19],[3,12,3,13],[3,14,3,19],[12,5,12,7],[14,1,14,4],[14,13,14,16],[8,5,8,7],[9,2,9,3],[9,4,9,5],[6,0,6,1],[6,2,6,7],[7,0,7,1],[7,2,7,7],[4,0,4,1],[4,2,4,7],[5,0,5,1],[5,2,5,7],[2,0,2,1],[2,2,2,7],[3,0,3,1],[39,13,39,15],[23,1,23,4],[27,5,27,7],[16,13,16,16],[17,13,17,16],[26,2,26,3],[26,4,26,5],[27,0,28,0],[25,0,25,7],[21,0,22,0],[18,2,18,3],[18,4,18,5],[38,0,38,7],[35,12,35,19],[36,13,36,15],[37,13,37,15],[25,12,25,19],[26,14,26,15],[26,16,26,17],[27,12,28,12],[16,1,16,4],[17,1,17,4],[21,5,21,7],[21,1,22,4],[30,8,31,8],[30,9,31,9],[15,13,15,16],[7,12,7,13],[7,14,7,19],[8,12,8,13],[8,17,8,19],[31,0,31,7],[38,12,38,19],[11,2,11,3],[11,4,11,5],[12,0,13,0],[12,1,13,4],[8,0,8,1],[15,1,15,4],[33,1,34,3],[33,0,34,0],[33,4,34,4],[33,5,33,7],[9,14,9,15],[9,16,9,17],[11,14,11,15],[11,16,11,17],[12,12,13,12],[3,2,3,7],[1,0,1,1],[1,2,1,3],[1,4,1,5],[40,0,40,7],[41,1,41,3],[39,1,39,3],[37,1,37,3],[36,1,36,3],[35,0,35,7]]}
["I. Отчет о выполнении производственной программы за 2015 год",null,null,null,null,null,null,null,null,null,null,null,"I. Отчет о выполнении производственной программы за 2015 год"]
[]
["Полное наименование организации",null,{"$f":"Титульный!C10","v":" "},null,null,null,null,null,null,null,null,null,"Полное наименование организации",null,{"$f":"C3","v":" "}]
["Юридический адрес, телефон, факс",null,{"$f":"CONCATENATE('данные об организации'!C5,'данные об организации'!C6)","v":""},null,null,null,null,null,null,null,null,null,"Юридический адрес, телефон, факс",null,{"$f":"C4","v":""}]
["ИНН",null,{"$f":"Титульный!C9","v":""},null,null,null,null,null,null,null,null,null,"ИНН",null,{"$f":"C5","v":""}]
["Сфера деятельности",null,"горячее водоснабжение",null,null,null,null,null,null,null,null,null,"Сфера деятельности",null,{"$f":"C6","v":"горячее водоснабжение"}]
["Наименование уполномоченного органа",null,"Департамент тарифного регулирования Томской   области",null,null,null,null,null,null,null,null,null,"Наименование уполномоченного органа",null,"Департамент тарифного регулирования Томской   области"]
["Юридический адрес, телефон, факс",null,"634041, г. Томск, пр. Кирова 41, тел./факс: (3822)   560-373",null,null,null,null,null,null,null,null,null,"Юридический адрес, телефон, факс",null,"634041, г. Томск, пр. Кирова 41, тел./факс: (3822)   560-373"]
["Период реализации производственной программы (график реализации мероприятий производственной программы)",null,"с ",null,"по","2015-12-31",null,null,null,null,null,null,"Период реализации производственной программы (график реализации мероприятий производственной программы)",null,"с ","2015-01-01","по","2015-12-31",null,null,"см. приказ, если неполный год"]
[]
["II. Выполнение плановых мероприятий",null,null,null,null,null,null,null,null,null,null,null,"II. Выполнение плановых мероприятий"]
[]
["№ п/п","Вид плановых мероприятий",null,null,null,"Сумма за 2015 год, тыс.руб",null,null,null,null,null,null,"№ п/п","Вид плановых мероприятий",null,null,null,"Сумма за 2015 год, тыс.руб"]
[null,null,null,null,null,"план","факт","откл",null,null,null,null,null,null,null,null,null,"план","факт","откл"]
[1,"Плановые мероприятия: по ремонту объектов водоснабжения и водопроводных сетей, направленные на улучшение качества горячей воды, обслуживания абонентов",null,null,null,0,0,null,null,null,null,null,1,"Плановые мероприятия: по ремонту объектов водоснабжения и водопроводных сетей, направленные на улучшение качества питьевой воды, обслуживания абонентов",null,null,null,0,0,{"$f":"S15-R15","v":0},"см. приказ, если неполный год"]
[2,"Плановые мероприятия по энергосбережению и повышению энергетической эффективности, в том числе по снижению потерь воды при транспортировке",null,null,null,0,0,null,null,null,null,null,2,"Плановые мероприятия по энергосбережению и повышению энергетической эффективности, в том числе по снижению потерь воды при транспортировке",null,null,null,0,0,{"$f":"S16-R16","v":0}]
[3,"Другие мероприятия",null,null,null,0,0,{"$f":"G17-F17","v":0},null,null,null,null,3,"Другие мероприятия",null,null,null,0,0,{"$f":"S17-R17","v":0}]
[null,"Итого",null,null,null,{"$f":"SUM(F15:F17)","v":0},{"$f":"SUM(G15:G17)","v":0},0,null,null,null,null,null,"Итого",null,null,null,{"$f":"SUM(R15:R17)","v":0},{"$f":"SUM(S15:S17)","v":0},0]
[]
["III. Объем подачи горячей воды",null,null,null,null,null,null,null,null,null,null,null,"III. Объем подачи горячей воды"]
[]
["№ п/п","Наименование показателя",null,null,null,"Объем за 2015 год, тыс. куб.м.",null,null,null,null,null,null,"№ п/п","Наименование показателя",null,null,null,"Объем за 2015 год, тыс. куб.м."]
[null,null,null,null,null,"план","факт","откл",null,null,null,null,null,null,null,null,null,"план","факт","откл"]
[1,"Объем реализации",null,null,null,null,{"$f":"'полезный отпуск'!B26/1000","v":0},{"$f":"G24-F24","v":0},null,null,null,null,1,"Объем реализации",null,null,null,null,{"$f":"ROUND(G24,2)","v":0},{"$f":"S24-R24","v":0},"см. приказ, если неполный год"]
[]
["IV. Объем финансовых потребностей, необходимых для реализации производственной программы",null,null,null,null,null,null,null,null,null,null,null,"IV. Объем финансовых потребностей, необходимых для реализации производственной программы"]
[]
["№ п/п","Наименование показателя",null,null,null,"Сумма за 2015 год, тыс.руб",null,null,null,null,null,null,"№ п/п","Наименование показателя",null,null,null,"Сумма за 2015 год, тыс.руб"]
[null,null,null,null,null,"план","факт","откл",null,null,null,null,null,null,null,null,null,"план","факт","откл"]
[1,"Необходимая валовая выручка",null,null,null,null,{"$f":"'Смета факт'!C15/1000","v":0},{"$f":"G30-F30","v":0},null,null,null,null,1,"Необходимая валовая выручка",null,null,null,null,{"$f":"ROUND(G30,2)","v":0},{"$f":"S30-R30","v":0},"см. приказ, если неполный год"]
[]
["V. Выполнение плановые значения показателей надежности, качества и энергетической эффективности объектов централизованных систем горячего водоснабжения",null,null,null,null,null,null,null,null,null,null,null,"V. Выполнение плановые значения показателей надежности, качества и энергетической эффективности объектов централизованных систем горячего водоснабжения"]
[]
["№ п/п","Наименование показателя",null,null,"ед. изм.","Значение за 2015 год",null,null,null,null,null,null,"№ п/п","Наименование показателя",null,null,"ед. изм.","Значение за 2015 год"]
[null,null,null,null,null,"план","факт","откл",null,null,null,null,null,null,null,null,null,"план","факт","откл"]
["Показатели качества воды",null,null,null,null,null,null,null,null,null,null,null,"Показатели качества воды"]
[1,"Доля проб горячей воды в тепловой сети или в сети горячего водоснабжения, не соответствующих требованиям по температуре, в общем объеме проб, отобранных по результатам производственного контроля качества горячей воды",null,null,"%",null,{"$f":"'показатели надежн и качества'!D10","v":0},{"$f":"G37-F37","v":0},null,null,null,null,1,"Доля проб горячей воды в тепловой сети или в сети горячего водоснабжения, не соответствующих требованиям по температуре, в общем объеме проб, отобранных по результатам производственного контроля качества горячей воды",null,null,"%",null,{"$f":"ROUND('показатели надежн и качества'!P10,2)","v":0},{"$f":"S37-R37","v":0}]
[2,"Доля проб горячей воды в тепловой сети или в сети горячего водоснабжения, не соответствующих установленным требованиям (за исключением температуры), в общем объеме проб, отобранных по результатам производственного контроля качества горячей воды",null,null,"%",null,{"$f":"'показатели надежн и качества'!D13","v":0},{"$f":"G38-F38","v":0},null,null,null,null,2,"Доля проб горячей воды в тепловой сети или в сети горячего водоснабжения, не соответствующих установленным требованиям (за исключением температуры), в общем объеме проб, отобранных по результатам производственного контроля качества горячей воды",null,null,"%",null,{"$f":"ROUND('показатели надежн и качества'!P13,2)","v":0},{"$f":"S38-R38","v":0}]
["Показатели надежности и бесперебойности водоснабжения",null,null,null,null,null,null,null,null,null,null,null,"Показатели надежности и бесперебойности водоснабжения"]
[1,"Количество зафиксированных перерывов в подаче горячей воды, возникших в результате аварий, повреждений и иных технологических нарушений",null,null,"ед в год/ км",null,{"$f":"'показатели надежн и качества'!D17","v":0},{"$f":"G40-F40","v":0},null,null,null,null,1,"Количество зафиксированных перерывов в подаче горячей воды, возникших в результате аварий, повреждений и иных технологических нарушений",null,null,"ед в год/ км",null,{"$f":"ROUND(G40,2)","v":0},{"$f":"S40-R40","v":0}]
["Показатели энергетической эффективности использования ресурсов",null,null,null,null,null,null,null,null,null,null,null,"Показатели энергетической эффективности использования ресурсов"]
[1,"Удельное количество тепловой энергии, расходуемое на подогрев горячей воды",null,null,"Гкал/ куб.м.","-",{"$f":"'показатели надежн и качества'!D21","v":0},"-",null,null,null,null,1,"Удельное количество тепловой энергии, расходуемое на подогрев горячей воды",null,null,"Гкал/ куб.м.","-",{"$f":"G42","v":0},"-"]
[]
[null,null,null,null,null,null,null,null,null,null,null,null,"VI. Расчет эффективности производственной программы"]
[]
[null,null,null,null,null,null,null,null,null,null,null,null,"№ п/п","Наименование показателя",null,null,"ед. изм.","2015 год"]
[null,null,null,null,null,null,null,null,null,null,null,null,null,null,null,null,null,"план","факт","Динамика изменения, %"]
[null,null,null,null,null,null,null,null,null,null,null,null,1," Агрегированный показатель качества, надежности и энергетической эффективности\n объектов централизованных систем водоснабжения",null,null,"-",{"$f":"ROUND((R37/3+R38/3+R40/3),2)","v":0},{"$f":"ROUND((S37/3+S38/3+S40/3),2)","v":0},{"$f":"IF(R48=0,0,S48/R48*100)","v":0}]
[null,null,null,null,null,null,null,null,null,null,null,null,2,"Динамика изменения расходов на реализацию производственной программы",null,null,"%",{"$f":"ROUND(R30,2)","v":0},{"$f":"ROUND(S30,2)","v":0},{"$f":"IF(R49=0,0,S49/R49*100)","v":0}]

{"sheet":"отчет ПП2","index":13,"n_rows":25,"n_cols":20,"rows_kept":25,"cut":false,"hidden":false,"merged":[[20,11,20,18],[21,13,21,14],[21,15,21,16],[22,11,23,11],[22,12,23,15],[22,16,22,18],[15,12,15,15],[16,12,16,15],[17,12,17,15],[18,12,18,15],[10,13,10,14],[10,15,10,16],[5,11,5,12],[5,13,5,18],[6,11,6,12],[6,13,6,18],[13,11,14,11],[13,12,14,15],[13,16,13,18],[24,1,24,4],[15,1,15,4],[16,1,16,4],[17,1,17,4],[18,1,18,4],[24,12,24,15],[1,11,1,12],[1,13,1,14],[1,15,1,16],[2,11,2,12],[2,13,2,18],[3,11,3,12],[3,13,3,18],[7,11,7,12],[7,13,7,18],[8,11,8,12],[8,16,8,18],[9,13,9,14],[9,15,9,16],[4,11,4,12],[4,13,4,18],[22,0,23,0],[22,5,22,7],[20,0,20,7],[21,2,21,3],[21,4,21,5],[22,1,23,4],[13,0,14,0],[13,1,14,4],[13,5,13,7],[10,2,10,3],[10,4,10,5],[9,2,9,3],[9,4,9,5],[6,0,6,1],[6,2,6,7],[7,0,7,1],[7,2,7,7],[1,0,1,1],[1,2,1,3],[1,4,1,5],[8,0,8,1],[8,5,8,7],[4,0,4,1],[4,2,4,7],[5,0,5,1],[5,2,5,7],[2,0,2,1],[2,2,2,7],[3,0,3,1],[3,2,3,7]]}
["I. Отчет о выполнении производственной программы за 2015 год",null,null,null,null,null,null,null,null,null,null,"I. Отчет о выполнении производственной программы за 2015 год"]
[]
["Полное наименование организации",null,{"$f":"Титульный!C10","v":" "},null,null,null,null,null,null,null,null,"Полное наименование организации",null,{"$f":"C3","v":" "}]
["Юридический адрес, телефон, факс",null,{"$f":"CONCATENATE('данные об организации'!C5,'данные об организации'!C6)","v":""},null,null,null,null,null,null,null,null,"Юридический адрес, телефон, факс",null,{"$f":"C4","v":""}]
["ИНН",null,{"$f":"Титульный!C9","v":""},null,null,null,null,null,null,null,null,"ИНН",null,{"$f":"C5","v":""}]
["Сфера деятельности",null,"горячее водоснабжение",null,null,null,null,null,null,null,null,"Сфера деятельности",null,{"$f":"C6","v":"горячее водоснабжение"}]
["Наименование уполномоченного органа",null,"Департамент тарифного регулирования Томской   области",null,null,null,null,null,null,null,null,"Наименование уполномоченного органа",null,"Департамент тарифного регулирования Томской   области"]
["Юридический адрес, телефон, факс",null,"634041, г. Томск, пр. Кирова 41, тел./факс: (3822)   560-373",null,null,null,null,null,null,null,null,"Юридический адрес, телефон, факс",null,"634041, г. Томск, пр. Кирова 41, тел./факс: (3822)   560-373"]
["Период реализации производственной программы (график реализации мероприятий производственной программы)",null,"с ",null,"по","2015-12-31",null,null,null,null,null,"Период реализации производственной программы (график реализации мероприятий производственной программы)",null,"с ","2015-01-01","по","2015-12-31",null,null,"см. приказ, если неполный год"]
[]
[]
["II.Показатели производственной деятельности организации",null,null,null,null,null,null,null,null,null,null,"II.Показатели производственной деятельности организации"]
[]
["№ п/п","Наименование показателя",null,null,null,"Объем за 2015 год, тыс. куб.м.",null,null,null,null,null,"№ п/п","Наименование показателя",null,null,null,"Объем за 2015 год, тыс. куб.м."]
[null,null,null,null,null,"план","факт","откл",null,null,null,null,null,null,null,null,"план","факт","откл"]
["1.","Отпущено (реализовано) воды  всего, в том числе:",null,null,null,null,{"$f":"'полезный отпуск'!B26/1000","v":0},{"$f":"G16-F16","v":0},null,null,null,"1.","Поднято воды насосными станциями 1 подъема",null,null,null,null,{"$f":"ROUND(G16,2)","v":0},{"$f":"R16-Q16","v":0},"см. приказ, если неполный год"]
["2.","Расход на собственные нужды предприятия",null,null,null,null,{"$f":"'полезный отпуск'!C26/1000","v":0},{"$f":"G17-F17","v":0},null,null,null,"2.","Пропущено воды через водопроводные очистные сооружения",null,null,null,null,{"$f":"ROUND(G17,2)","v":0},{"$f":"R17-Q17","v":0},"см. приказ, если неполный год"]
["3.","Отпущено воды другим водопроводам",null,null,null,null,null,0,null,null,null,"3.","Расход воды на хозяйственные и технологические нужды",null,null,null,null,0,0,"см. приказ, если неполный год"]
["4.","Отпущено товарной воды сторонним потребителям",null,null,null,null,{"$f":"'полезный отпуск'!D26/1000-G18","v":0},0,null,null,null,"4.","Получено воды со стороны",null,null,null,null,0,0,"см. приказ, если неполный год"]
[]
["IV. Объем финансовых потребностей, необходимых для реализации производственной программы",null,null,null,null,null,null,null,null,null,null,"IV. Объем финансовых потребностей, необходимых для реализации производственной программы"]
[]
["№ п/п","Наименование показателя",null,null,null,"Сумма за 2015 год, тыс.руб",null,null,null,null,null,"№ п/п","Наименование показателя",null,null,null,"Сумма за 2015 год, тыс.руб"]
[null,null,null,null,null,"план","факт","откл",null,null,null,null,null,null,null,null,"план","факт","откл"]
[1,"Необходимая валовая выручка",null,null,null,null,{"$f":"'Смета факт'!C15/1000","v":0},{"$f":"G25-F25","v":0},null,null,null,1,"Необходимая валовая выручка",null,null,null,null,{"$f":"ROUND(G25,2)","v":0},{"$f":"R25-Q25","v":0},"см. приказ, если неполный год"]

{"sheet":"Лист3","index":14,"n_rows":11,"n_cols":7,"rows_kept":11,"cut":false,"hidden":true,"merged":[[10,1,10,4],[10,6,10,7],[7,1,7,4],[7,6,7,7],[8,1,8,4],[8,6,8,7],[9,1,9,4],[9,6,9,7]]}
[]
[]
[]
[]
[]
[]
[]
["1.","Отпущено (реализовано) воды  всего, в том числе:",null,null,null,"тыс.куб.м",3.452]
["1.1.","           Расход воды на собственные нужды   предприятия",null,null,null,"тыс.куб.м",0]
["1.2.","          Отпущено воды другим водопроводам",null,null,null,"тыс.куб.м",0]
["1.3.","          Отпущено товарной воды   сторонним  потребителям",null,null,null,"тыс.куб.м",3.452]